Cogmind - Beta 11 @@@ ROGUE MODE // 2022.04.17 @ 23:56:43 Player: Runia Result: Establishing 0b11! Performance ------------- Evolutions (9) 4500 Regions Visited (35) 7000 Robots Destroyed (565) 2825 Value Destroyed (27659) 27659 Prototype IDs (285) 5700 Alien Tech Used (13) 2600 Bonus (33181) 33181 TOTAL SCORE: 83465 Bonus ------- High Alert Combat Kills 6424 Follower Combat Kills 1228 Network Hubs Disabled 400 Destroyed Z-Imprinter 1000 Met Zhirov 300 Met Warlord at Base 500 MAIN.C Attacked Warlord 500 Warlord Defense Kill 1212 A7 Reached Mainframe 300 Met Warlord at Research 2000 Scanned by Researcher 500 Destroyed MAIN.C Guards 500 Met MAIN.C 5000 Hacked MAIN.C 300 Destroyed MAIN.C Shell 5000 Destroyed MAIN.C 10000 Met Warlord at Command 2000 Win 3000 Friendly Fire -6983 Cogmind --------- Core Integrity 106/1600 Matter 271/300 Energy 1073/1090 System Corruption 0% Temperature Cool (8) Movement Walking (177) Ox1 Location 0b11 Command Parts ------- > --- POWER (3) -------- Zero-point Reactor Vortex Chain Reactor > --- PROPULSION (7) --- Enhanced Biometal Leg Enhanced Biometal Leg Centrium Leg High-density Centrium Leg High-density Centrium Leg Experimental Biometal Leg Experimental Biometal Leg > --- UTILITY (12) ----- Experimental Power Amplifier Coolant Network Huge Storage Unit Experimental Target Analyzer Experimental Core Analyzer Centrium Medium Armor Plating SHELL Armor AEGIS Remote Shield Spacefold Activator > --- WEAPON (3) ------- Enhanced Nova Cannon Enhanced Nova Cannon Linear Accelerator > --- INVENTORY (25) --- Experimental Biometal Heavy Treads High-density Centrium Leg High-density Centrium Leg High-density Centrium Leg Experimental Cooling System Experimental Energy Well (600) Zionite Biocell (600) Zionite Biocell (600) Long-range Terrain Scanner Advanced Transmission Jammer Thermal Barrier Experimental System Purifier Transdimensional Reconstructor Compact HERF Cannon Enhanced Nova Cannon Sigix Shearcannon Heavy Linear Accelerator Graviton Cannon Graviton Cannon Gamma Bomb Array Neutron Missile Launcher Advanced Remote Datajack Peak State ------------ > --- POWER ------------ Zero-point Reactor Vortex Chain Reactor > --- PROPULSION ------- Enhanced Biometal Leg Enhanced Biometal Leg Centrium Leg High-density Centrium Leg High-density Centrium Leg Experimental Biometal Leg Experimental Biometal Leg > --- UTILITY ---------- Experimental Power Amplifier Coolant Network Huge Storage Unit Experimental Target Analyzer Experimental Core Analyzer Centrium Medium Armor Plating SHELL Armor AEGIS Remote Shield Spacefold Activator > --- WEAPON ----------- Enhanced Nova Cannon Enhanced Nova Cannon Linear Accelerator > --- INVENTORY -------- Experimental Biometal Heavy Treads High-density Centrium Leg High-density Centrium Leg High-density Centrium Leg Experimental Cooling System Experimental Energy Well Zionite Biocell Zionite Biocell Long-range Terrain Scanner Advanced Transmission Jammer Thermal Barrier Experimental System Purifier Transdimensional Reconstructor Compact HERF Cannon Enhanced Nova Cannon Sigix Shearcannon Heavy Linear Accelerator Graviton Cannon Graviton Cannon Gamma Bomb Array Neutron Missile Launcher Advanced Remote Datajack [Rating: 256] Favorites ----------- Power Vortex Chain Reactor Engine Heavy Ion Engine Power Core Reinforced Fission Core Reactor Vortex Chain Reactor Propulsion Enhanced Biometal Leg Treads Light Treads Leg Enhanced Biometal Leg Wheel Compact Wheel Utility High-capacity Storage Unit Device Advanced Sensor Array Storage High-capacity Storage Unit Processor Experimental Targeting Computer Hackware Advanced Hacking Suite Protection Centrium Medium Armor Plating Artifact Spacefold Activator Weapon Enhanced Nova Cannon Energy Gun Heavy Particle Gun Energy Cannon Enhanced Nova Cannon Ballistic Gun Improved Assault Rifle Ballistic Cannon Antimatter Cannon Launcher Improved Grenade Launcher Special Weapon Plasma Cutter Impact Weapon Core Stripper Slashing Weapon Ripper Piercing Weapon Heavy Pick Build | -11 -10 -10 -9 -9 -9 -8 -8 -7 -7 -7 -7 -7 -6 -6 -6 -6 -6 -6 -5 -5 -5 -5 -4 -4 -4 -4 -4 -3 -3 -3 -3 -2 -2 -1 -1 ------- Run | Scr Mat Min Mat Min Exi Min Mat Fac Low Low Zio Dee Pro Fac Ext Cet Arc Hub Fac Upp Upp War Pro Fac Upp Upp Zhi Pro Res Qua Sec Res Tes Acc Com Slots Evolved 18 | . . . 2 . . . 2 2 . . . . . 2 . . . . 2 . . . . 2 . . . . 2 . . 2 . 2 . Power 2 | . . . . . . . . . . . . . . . . . . . 1 . . . . . . . . . 1 . . . . . . Propulsion 5 | . . . 1 . . . . 1 . . . . . . . . . . 1 . . . . . . . . . 1 . . 1 . . . Utility 10 | . . . 1 . . . 2 . . . . . . 2 . . . . . . . . . 2 . . . . . . . 1 . 2 . Weapon 1 | . . . . . . . . 1 . . . . . . . . . . . . . . . . . . . . . . . . . . . Parts Attached 920 | 2 13 6 36 5 48 13 34 39 2 11 4 24 14 19 17 8 11 35 21 18 10 27 8 7 12 16 32 5 63 36 105 18 53 47 101 Power 41 | . 2 . 2 2 6 . . 1 . . . 1 . . . 1 . . 2 . . 1 . . . . 1 . 4 2 4 . 1 . 11 Engine 6 | . 1 . 2 2 1 . . . . . . . . . . . . . . . . . . . . . . . . . . . . . . Core 6 | . 1 . . . 4 . . . . . . . . . . . . . 1 . . . . . . . . . . . . . . . . Reactor 29 | . . . . . 1 . . 1 . . . 1 . . . 1 . . 1 . . 1 . . . . 1 . 4 2 4 . 1 . 11 Propulsion 127 | 2 . 2 8 . 10 2 6 7 1 . 2 9 . . . 2 4 4 3 . 3 5 1 1 1 . 6 . 6 8 4 7 5 2 16 Treads 34 | 2 . 2 8 . 6 1 4 1 . . . . . . . 2 . 1 . . 1 1 . . . . 1 . . 2 . 1 . . 1 Leg 87 | . . . . . 4 . . 4 . . 2 9 . . . . 4 3 3 . 2 4 1 1 1 . 5 . 6 6 4 6 5 2 15 Wheel 6 | . . . . . . 1 2 2 1 . . . . . . . . . . . . . . . . . . . . . . . . . . Hover . | . . . . . . . . . . . . . . . . . . . . . . . . . . . . . . . . . . . . Flight . | . . . . . . . . . . . . . . . . . . . . . . . . . . . . . . . . . . . . Utility 467 | . 7 3 9 . 16 5 14 10 1 9 1 7 8 11 11 2 4 14 10 16 5 7 6 5 8 10 16 3 44 22 70 7 35 33 38 Device 346 | . 2 3 3 . 6 1 8 7 1 4 . 4 6 9 4 . 4 9 7 15 5 6 5 4 7 10 12 2 36 19 60 6 27 29 25 Storage 16 | . 4 . 1 . . 1 . . . . . 1 . . . . . 1 . . . . . . . . . . 1 1 . . . . 6 Processor 22 | . 1 . . . 2 1 . 1 . . . . . . . 1 . . 1 . . 1 . 1 . . . 1 2 . . 1 5 2 2 Hackware 5 | . . . . . . . . . . . . . . . 1 . . . . . . . . . . . . . 2 . . . . 1 1 Protection 70 | . . . 5 . 8 2 6 2 . 5 1 2 2 2 6 1 . 4 2 1 . . 1 . 1 . 4 . 3 2 6 . 2 . 2 Artifact 8 | . . . . . . . . . . . . . . . . . . . . . . . . . . . . . . . 4 . 1 1 2 Weapon 285 | . 4 1 17 3 16 6 14 21 . 2 1 7 6 8 6 3 3 17 6 2 2 14 1 1 3 6 9 2 9 4 27 4 12 12 36 Energy Gun 43 | . 2 1 3 . . 1 3 7 . . . 3 1 2 3 1 1 4 1 . 1 7 . . . . 1 . . . . . 1 . . Energy Cannon 73 | . . . . . . . . . . . . . 1 . 1 . 1 3 2 1 . 3 . 1 . . 2 . 3 3 16 1 8 10 17 Ballistic Gun 69 | . . . 10 2 11 5 9 3 . 1 . 1 2 2 2 2 1 4 2 . . 1 . . . . . . 4 . 4 2 1 . . Ballistic Cannon 14 | . . . . . . . . . . . . . . . . . . . 1 . . . . . . . 4 1 . . . . . 1 7 Launcher 51 | . 2 . 4 1 2 . 2 4 . 1 . 3 1 . . . . 2 . 1 1 1 . . 2 2 . 1 2 . 5 1 2 1 10 Special Weapon 7 | . . . . . 3 . . . . . . . . . . . . . . . . . . . . 1 2 . . . . . . . 1 Impact Weapon 4 | . . . . . . . . . . . . . . . . . . . . . . . . . . . . . . 1 2 . . . 1 Slashing Weapon 15 | . . . . . . . . 7 . . 1 . 1 4 . . . 2 . . . . . . . . . . . . . . . . . Piercing Weapon 9 | . . . . . . . . . . . . . . . . . . 2 . . . 2 1 . 1 3 . . . . . . . . . Special Melee Weapon . | . . . . . . . . . . . . . . . . . . . . . . . . . . . . . . . . . . . . Unidentified Prototypes 78 | . . 1 1 . 10 . 2 1 . . . 5 . . . 4 1 . 1 . . 7 . . . . 2 . 4 4 11 3 11 1 9 Parts Lost 50 | . 1 . 3 . . 6 2 4 . . . . . . . . . 4 1 . 1 2 . 1 1 . 8 . . 1 7 . . . 8 Power 3 | . 1 . . . . . . . . . . . . . . . . . 1 . . . . . . . . . . . . . . . 1 Propulsion 9 | . . . 2 . . 2 2 2 . . . . . . . . . . . . . . . . . . . . . . 1 . . . . Utility 24 | . . . 1 . . 2 . . . . . . . . . . . 2 . . . . . . 1 . 7 . . 1 3 . . . 7 Weapon 14 | . . . . . . 2 . 2 . . . . . . . . . 2 . . 1 2 . 1 . . 1 . . . 3 . . . . Highest Loss Streak 8 | . 1 . 2 . . 5 2 2 . . . . . . . . . 3 1 . 1 1 . 1 1 . 8 . . 1 3 . . . 3 To Critical Strikes . | . . . . . . . . . . . . . . . . . . . . . . . . . . . . . . . . . . . . Average Slot Usage (%) 94 | . 97 100 98 100 99 86 99 96 100 100 100 99 100 99 100 90 94 99 97 100 99 97 94 93 90 89 77 94 95 98 89 83 84 84 81 Engine 1 | . 4 . 10 11 5 . . . . . . . . . . . . . . . . . . . . . . . . . . . . . . Core 1 | . 8 14 . . 5 11 9 2 . . . . . . . . . . 1 5 5 3 . . . . . . . . . . . . . Reactor 5 | . . . . . . . . 4 7 7 7 6 7 6 6 6 6 6 8 5 5 5 5 5 5 5 4 5 9 13 8 8 8 8 8 Treads 7 | . 28 28 31 33 28 25 20 8 7 7 7 2 . . . 8 5 . . . . . . . . . 2 . . . . . . . . Leg 19 | . . . . . 4 . . 16 7 7 15 27 30 26 26 8 15 25 29 29 27 28 29 26 26 26 20 26 28 27 27 28 30 27 25 Device 13 | . 12 14 11 11 4 . 8 7 13 13 14 7 13 19 15 13 16 18 17 16 17 16 17 25 22 21 13 30 17 14 17 20 9 10 11 Storage 6 | . 14 14 11 11 11 11 9 7 7 7 7 7 7 6 6 6 6 6 5 5 5 5 5 5 5 5 5 5 4 4 4 4 4 4 5 Processor 10 | . . . . . 1 14 18 15 15 15 15 15 15 13 13 20 16 13 11 11 11 11 11 10 10 10 8 5 14 14 10 9 18 20 9 Protection 6 | . . . 10 11 15 2 9 7 1 1 . 6 1 5 9 6 6 7 4 5 5 5 5 5 5 5 9 5 3 3 3 4 4 4 5 Energy Gun 3 | . 13 14 7 . . 2 8 11 7 7 7 10 8 10 12 12 6 3 1 . 4 4 . . . . 1 . . . . . . . . Energy Cannon 3 | . . . . . . . . . . . . . . . . . . 3 2 4 5 1 5 4 5 5 2 5 6 10 10 5 7 7 7 Ballistic Gun 6 | . 14 14 14 21 19 14 9 6 7 12 7 8 11 6 6 6 13 10 7 5 . . . . . . . . 4 1 1 2 . . . Ballistic Cannon 1 | . . . . . . . . . . . . . . . . . . . 2 5 5 5 5 5 5 4 1 5 . . . . . . 2 Naked Turns . | . . . . . . . . . . . . . . . . . . . . . . . . . . . . . . . . . . . . Heaviest Build 239 | 14 30 31 63 63 81 71 78 76 66 71 68 75 74 75 73 86 87 96 109 108 101 110 119 111 128 129 138 129 152 186 217 218 212 213 239 Greatest Support 224 | 40 40 40 60 60 80 60 60 95 32 28 66 108 106 106 106 160 160 112 128 128 128 132 132 129 129 117 134 134 168 171 188 216 224 224 224 Greatest Overweight (x) 7 | . . . 1 1 1 6 7 4 2 2 2 1 . . . 1 1 1 . . 1 2 . . 1 1 1 . . 1 1 1 . 1 1 Average Overweight (x) . | . . . . 1 . 3 3 . 1 2 1 . . . . . . . . . . . . . . . . . . . . . . . . Largest Inventory Capacity 25 | 8 20 15 20 20 20 20 20 20 20 20 20 20 20 20 20 20 20 20 20 20 20 20 20 20 20 20 20 20 20 25 25 25 25 25 25 Average Capacity 20 | 8 10 15 19 20 20 20 20 20 20 20 20 20 20 20 20 20 20 20 20 20 20 20 20 20 20 20 20 20 20 23 25 25 25 25 25 Most Carried 25 | 6 10 13 20 20 20 20 20 20 20 20 20 20 20 20 20 20 20 20 20 20 20 20 20 20 20 20 20 20 20 25 25 25 25 25 25 Average Carried 20 | 2 8 11 16 20 18 18 19 19 20 20 19 19 20 19 19 19 19 19 18 20 19 19 19 18 19 19 18 19 19 23 24 23 24 24 22 Final Capacity 25 | 8 15 15 20 20 20 20 20 20 20 20 20 20 20 20 20 20 20 20 20 20 20 20 20 20 20 20 20 20 20 25 25 25 25 25 25 Final Carried 25 | 3 10 13 20 20 20 19 20 20 20 20 20 20 20 20 20 20 20 20 20 20 20 18 20 20 20 20 20 20 20 25 22 25 25 25 25 Class Distribution -------------------- 21% | Scavenger-Mutant 17% | Generator-Mutant 16% | Mutant 10% | Scavenger-Assassin 7% | Scavenger-Skirmisher 5% | Infiltrator-Assassin 3% | Scavenger-Gunner 3% | Generator-Gunner 3% | Generator-Skirmisher Dominant Class ---------------- Mutant | -10/Materials Scavenger-Mutant | -10/Mines Mutant | -9/Materials Mutant | -9/Mines Mutant | -9/Exiles Scavenger-Mutant | -8/Mines Scavenger-Mutant | -8/Materials Mutant | -7/Factory Scavenger-Assassin | -7/Lower Caves Scavenger-Skirmisher | -7/Lower Caves Scavenger-Assassin | -7/Zion Scavenger-Gunner | -7/Deep Caves Scavenger-Skirmisher | -6/Proximity Caves Scavenger-Skirmisher | -6/Factory Scavenger-Tank | -6/Extension Scavenger-Mutant | -6/Cetus Scavenger-Gunner | -6/Archives Scavenger-Skirmisher | -6/Hub_04(d) Scavenger-Mutant | -5/Factory Scavenger-Mutant | -5/Upper Caves Scavenger-Mutant | -5/Upper Caves Scavenger-Assassin | -5/Warlord Scavenger-Assassin | -4/Proximity Caves Infiltrator-Assassin | -4/Factory Infiltrator-Assassin | -4/Upper Caves Infiltrator-Assassin | -4/Upper Caves Mutant | -4/Zhirov Scavenger-Assassin | -3/Proximity Caves Generator-Mutant | -3/Research Generator-Mutant | -3/Quarantine Generator-Mutant | -3/Section 7 Generator-Skirmisher | -2/Research Generator-Mutant | -2/Testing Generator-Mutant | -1/Access Generator-Mutant | -1/Command Resources | -11 -10 -10 -9 -9 -9 -8 -8 -7 -7 -7 -7 -7 -6 -6 -6 -6 -6 -6 -5 -5 -5 -5 -4 -4 -4 -4 -4 -3 -3 -3 -3 -2 -2 -1 -1 ----------- Run | Scr Mat Min Mat Min Exi Min Mat Fac Low Low Zio Dee Pro Fac Ext Cet Arc Hub Fac Upp Upp War Pro Fac Upp Upp Zhi Pro Res Qua Sec Res Tes Acc Com Matter Collected 16686 | 232 344 141 772 34 875 298 845 641 20 178 44 479 119 246 566 99 420 750 281 212 529 540 92 . 124 433 397 250 1284 479 1750 139 380 260 2433 Remotely . | . . . . . . . . . . . . . . . . . . . . . . . . . . . . . . . . . . . . Salvage Created 30515 | 93 600 264 1434 25 389 518 1145 1822 . 373 . 505 75 273 883 181 581 1429 540 267 631 307 223 16 31 379 413 273 2000 755 4559 576 2275 2806 3874 Parts 1485 | 4 40 14 96 2 68 22 67 75 . 17 . 32 3 11 48 10 32 67 13 10 14 13 7 1 5 5 9 18 90 24 244 15 145 135 129 Haulers Intercepted 20 | . 2 . 5 . . . 5 . . . . . . . . . . 1 1 . . . . . . . . . . . . 4 . 2 . Recyclers Shooed 23 | 1 2 . 1 . . 3 . 3 . . . . . 1 2 . . 4 1 . . . . . . . . . 1 . 1 . . 3 . Parts Field Recycled . | . . . . . . . . . . . . . . . . . . . . . . . . . . . . . . . . . . . . Retrieved Matter . | . . . . . . . . . . . . . . . . . . . . . . . . . . . . . . . . . . . . Parts Self-Destructed 142 | . . . . . . . . . 5 6 5 . 3 . . . . . . 3 10 84 6 . 2 1 1 16 . . . . . . . Prevented 25 | . . . . . . . . . 5 . . . . . . . . . . 10 4 6 . . . . . . . . . . . . . Kills | -11 -10 -10 -9 -9 -9 -8 -8 -7 -7 -7 -7 -7 -6 -6 -6 -6 -6 -6 -5 -5 -5 -5 -4 -4 -4 -4 -4 -3 -3 -3 -3 -2 -2 -1 -1 ------- Run | Scr Mat Min Mat Min Exi Min Mat Fac Low Low Zio Dee Pro Fac Ext Cet Arc Hub Fac Upp Upp War Pro Fac Upp Upp Zhi Pro Res Qua Sec Res Tes Acc Com Combat Hostiles Destroyed 406 | . 12 4 31 1 4 2 17 26 . 6 . 11 1 4 14 2 1 21 4 4 14 8 4 1 5 9 . 5 19 6 62 2 28 27 51 Guns 128 | . 8 4 22 1 . 2 12 19 . 3 . 5 1 4 14 2 1 11 2 1 . 4 . . . . . . 5 . 6 . 1 . . Cannons 131 | . . . . . . . . . . . . . . . . . . 4 . 1 5 1 1 1 1 2 . 2 10 4 35 2 27 20 15 AOE 117 | . 4 . 8 . 4 . 5 5 . 3 . 6 . . . . . 6 . . 8 3 3 . 4 6 . 3 2 . 15 . . 6 26 Classes Destroyed 32 | 2 6 . 3 1 3 1 1 1 . 2 . 1 . . 1 . . . . . . 1 . . . 1 . 1 . 1 . . 3 1 2 Worker 24 | . 2 1 3 . . 2 . 1 . . . . . . . . . 4 . . . . . . . . . . 2 . 1 . 1 3 4 Builder 21 | . 1 . 3 . . . 1 2 . . . . . . . . . 3 . . . . . . . . . . 1 . 2 . 2 6 . Tunneler 3 | 1 . . . . . . . . . . . . . . 1 . . . . . . . . . . . . . . . . . . 1 . Hauler 20 | . 2 . 5 . . . 5 . . . . . . . . . . 1 1 . . . . . . . . . . . . 4 . 2 . Recycler 29 | 1 2 1 1 . . 3 3 8 . . . . . . . . . 1 1 . . . . . . . . . 3 . 2 . . 3 . Minesweeper 1 | . . . . . . . . . . . . . . . . . . . . . . . . . . . . 1 . . . . . . . Mechanic 1 | . . . . . . . . . . . . . . . . . . . . . . . . . . . . . . . . . . . 1 Operator 15 | . . . . . . . 1 1 . . . . . . 2 . 4 2 . . . . . . . . . . 2 . . . 1 . 2 Turret 1 | . . . . . 1 . . . . . . . . . . . . . . . . . . . . . . . . . . . . . . Watcher 31 | . 2 . 1 . . . 2 1 . . . . . 1 2 1 . 3 1 . . . . . . . . . 2 2 3 . 3 4 3 Swarmer 73 | . 6 . 8 . . . 7 7 . . . . . . 3 . . 4 . 1 1 . . . 4 6 . 3 . . 10 . . 6 7 Saboteur 1 | . . . . . . . . . . . . . . . . . . . . . . . . . . . . . . . . . . . 1 Grunt 130 | . 6 4 15 . . . 5 13 . 3 . . . 2 3 . . 13 2 1 8 1 3 . . . . 1 3 . 16 . 8 3 20 Brawler 8 | . . . 1 . . . . . . . . . . . . . . . . . 1 . 1 . . . . . . . . . . 1 4 Duelist 11 | . . . 1 . . . . 1 . 1 . . . . . . . . . 1 2 . . . . . . . . . 1 . 1 2 1 Researcher 1 | . . . . . . . . . . . . . . . . . . . . . . . . . . . . . . . . . 1 . . Sentry 50 | . . . 6 . . . 4 1 . . . . 1 1 7 . 1 2 2 1 2 . . . 1 1 . . 4 . 7 2 . 4 3 Demolisher 2 | . . . . 1 . . . . . . . . . . . . . . . . . 1 . . . . . . . . . . . . . Specialist 1 | . . . . . . . . . . . . . . . . . . . . . . . . . . . . . . . . . 1 . . Hunter 21 | . . . . . . 1 1 2 . . . . . . . . . 2 . . . 1 . . . 2 . . 2 . 2 . 2 . 6 Programmer 71 | . . . . . . . . 2 . 1 . . . 1 . . . . . . . 4 . 1 . . . . 10 5 21 . 14 7 5 Q-Series 4 | . . . . . . . . . . . . . . . . . . . . . . . . . . . . . . . . . . 4 . Behemoth 3 | . . . . . . . . . . . . . . . 1 . . . . . . . . . . . . 1 . . 1 . . . . Cetus Guard 2 | . . . . . . . . . . . . . . . . 2 . . . . . . . . . . . . . . . . . . . S7 Guard 2 | . . . . . . . . . . . . . . . . . . . . . . . . . . . . . . . 2 . . . . M Guard 2 | . . . . . . . . . . . . . . . . . . . . . . . . . . . . . . . . . . . 2 Enhanced Grunt 5 | . . . . . . . . . . . . 2 . . . . 2 . . . . . . . . . 1 . . . . . . . . Executioner 3 | . . . . . . . . . . . . . . . . . . . . . . 1 . . . . . . . . 2 . . . . Alpha 7 1 | . . . . . . . . . . . . . . . . . . . . . . . . . . . . . . . . . 1 . . Fortress 1 | . . . . . . . . . . . . . . . . . . . . . . . . . . . . . . 1 . . . . . Protovariant P 1 | . . . . . . . . . . . . . . . . . . . . . . . . . . . . . . . . . 1 . . Zionite 8 | . . . . . 8 . . . . . . . . . . . . . . . . . . . . . . . . . . . . . . Z-Light 6 | . . . . . . . . . . . . 6 . . . . . . . . . . . . . . . . . . . . . . . Packrat 1 | . . . . . . . . . . . . . . . . . . . . . . . . . . . . 1 . . . . . . . Samaritan 1 | . . . . . . . . . . . . . . . . . . . . . . . . . . 1 . . . . . . . . . Thief 1 | . . . . . . . . . . 1 . . . . . . . . . . . . . . . . . . . . . . . . . Assembled 8 | . . . . . 4 . . . . . . 4 . . . . . . . . . . . . . . . . . . . . . . . Thug 3 | . . . . . . . . . . 2 . . . . . . 1 . . . . . . . . . . . . . . . . . . Savage 1 | . . . . . . . . . . . . . . . . . . . . . . . . . . 1 . . . . . . . . . Guerrilla 1 | . . . . . . . . . . . . . . . . . 1 . . . . . . . . . . . . . . . . . . Mutant 1 | . . . . . . . . . . 1 . . . . . . . . . . . . . . . . . . . . . . . . . Best Kill Streak 13 | 2 5 2 8 1 4 5 6 11 . 4 . 6 1 3 4 3 1 13 3 1 10 6 4 1 4 4 1 3 6 3 11 2 4 10 12 Combat Bots Only 11 | . 3 2 6 1 4 1 4 5 . 4 . 6 1 3 3 2 1 10 2 1 10 6 4 1 4 4 . 3 4 3 7 1 4 8 11 Max Kills in Single Turn 7 | 1 2 1 4 1 1 2 3 3 . 2 . 2 1 1 2 2 1 4 2 1 4 2 3 1 2 3 1 3 3 1 3 1 2 7 5 Gunslinging 1 | . . . . . . . . . . . . . . . 1 . . . . . . . . . . . . . . . . . . . . Exploded 6 | . 1 . 4 . 1 . 3 2 . 2 . 2 . . . . . 3 . . 4 2 3 . 2 3 . 3 2 . 3 . . 6 5 Melee . | . . . . . . . . . . . . . . . . . . . . . . . . . . . . . . . . . . . . Uniques/NPCs Destroyed 9 | . . . . . 4 1 . . . . . 1 . . . . . . . . . . . . . . 1 . . . . . . . 2 8R-AWN (-9/Exiles) EX-BIN (-9/Exiles) EX-DEC (-9/Exiles) EX-HEX (-9/Exiles) 12-ASH (-8/Mines) Z-Imprinter (-7/Deep Caves) Svarog (-4/Zhirov) MAIN.C Shell (-1/Command) MAIN.C (-1/Command) Combat | -11 -10 -10 -9 -9 -9 -8 -8 -7 -7 -7 -7 -7 -6 -6 -6 -6 -6 -6 -5 -5 -5 -5 -4 -4 -4 -4 -4 -3 -3 -3 -3 -2 -2 -1 -1 -------- Run | Scr Mat Min Mat Min Exi Min Mat Fac Low Low Zio Dee Pro Fac Ext Cet Arc Hub Fac Upp Upp War Pro Fac Upp Upp Zhi Pro Res Qua Sec Res Tes Acc Com Damage Taken 33603 | . 469 202 1087 284 259 1350 605 1339 18 108 . 55 157 214 612 64 65 1594 412 159 589 642 248 151 264 381 2551 186 1018 686 6049 121 746 1155 9763 Core 3021 | . 61 44 61 32 15 238 75 131 . 15 . 28 26 26 132 . . 186 24 . 15 67 . . 15 19 55 . 97 97 948 . 25 86 503 Absorbed by Shields 14942 | . . . . . . . . . . . . . . . 225 25 . . . 27 138 . 75 . 39 82 534 . 801 220 4281 71 501 636 7287 Reduced by Siege Mode 206 | . . . . . . . . . . . . . . . . . . 10 . . 12 . . . . . 41 . . 14 . . . . 129 Redirected to Shielding 242 | . . . . . . . 29 . . . . . . . . . . . . . . . . . . . 213 . . . . . . . . Regen/Repaired (Parts) 16738 | . . . 284 . . . . 111 . . . . . . . . . . 433 . . . . . . . . . . . 3824 2953 152 586 8395 Core Remaining (%) 58 | 100 . 58 . . . 13 86 . . . . . 71 . . . . 59 . . . . 89 . . . . 92 . . 1 . 64 . 6 Volleys Fired 1616 | 4 57 18 95 4 75 35 54 77 . 8 . 27 10 22 55 4 40 67 22 12 20 35 7 7 12 34 24 55 117 59 185 10 70 96 199 Largest 3 | 2 2 2 2 2 2 2 2 3 . 3 . 3 3 3 3 1 3 3 3 3 2 1 1 1 2 2 1 1 3 3 3 2 2 2 3 Hottest 360 | 70 70 85 112 46 60 79 85 179 . 106 . 133 108 128 159 30 148 206 156 156 121 81 81 40 145 145 45 113 261 320 278 232 300 300 360 Shots Fired 2775 | 8 103 37 182 8 101 48 104 204 . 19 . 63 12 58 143 4 86 133 39 14 26 35 7 7 18 42 25 56 200 79 298 13 78 123 402 Gun 1367 | 8 94 37 174 8 60 48 100 198 . 17 . 56 11 58 143 4 86 75 22 1 . 20 2 . . . 9 . 70 7 48 3 8 . . Cannon 1231 | . . . . . . . . . . . . . . . . . . 53 17 13 20 15 5 7 13 23 1 55 124 72 240 9 70 122 372 Launcher 121 | . 9 . 8 . 12 . 4 6 . 2 . 7 1 . . . . 5 . . 6 . . . 5 8 . 1 6 . 10 1 . 1 29 Special 56 | . . . . . 29 . . . . . . . . . . . . . . . . . . . . 11 15 . . . . . . . 1 Kinetic 959 | 4 47 19 66 8 60 45 55 65 . 11 . 32 10 22 55 4 61 55 21 3 6 9 2 7 6 8 . 20 70 7 48 3 8 . 122 Thermal 1421 | 4 47 18 108 . 29 3 45 133 . 6 . 24 1 36 88 . 25 73 6 . . . . . 7 26 16 35 124 62 182 . 12 61 250 Explosive 90 | . 9 . 8 . 12 . 4 2 . 2 . 7 1 . . . . 5 . . 6 . . . 5 8 . 1 . . 4 1 . 1 14 Electromagnetic 132 | . . . . . . . . 4 . . . . . . . . . . 12 11 14 6 3 . . . . . 6 10 38 . 3 10 15 Slashing 141 | . . . . . . . . . . . . . . . . . . . . . . . . . . . . . . . 26 9 55 51 . Entropic 31 | . . . . . . . . . . . . . . . . . . . . . . 20 2 . . . 9 . . . . . . . . Robot Hit Streak 59 | 7 11 17 13 3 9 18 14 17 . 11 . 13 6 18 20 8 19 19 13 5 9 7 3 3 6 19 17 5 18 8 36 7 29 59 47 Robot Miss Streak 5 | . 4 3 3 2 4 2 2 4 . 1 . 4 1 3 3 1 4 1 4 1 1 4 1 2 3 1 1 1 3 4 4 2 4 4 5 Penetration Max 3 | . . . . . 1 1 1 2 . . . . . 1 1 2 1 1 1 . . 3 1 . . . . . 1 . 1 . 1 1 1 Secondary Targets 9 | . . 1 2 . . . . 2 . . . . . . 4 . . . . . . . . . . . . . . . . . . . . Max Gunslinging Chain 1 | . . 1 1 . . . . 1 . . . . . . 1 . . . . . . . . . . . . . . . . . . . . Shots Hit Robots 1822 | 7 64 22 127 5 54 36 74 151 . 18 . 37 6 37 110 3 63 76 25 9 19 22 5 4 8 32 31 7 99 23 186 11 60 78 313 Core Hits 1272 | 3 34 12 67 4 33 15 43 67 . 10 . 31 3 13 44 4 25 64 11 5 32 16 7 1 13 21 13 10 48 12 178 18 113 118 184 Critical Kills 26 | . . . . . 3 1 2 . . . . . . . . 3 5 1 . . . . . . . 1 . . 3 1 3 . . 1 2 Critical Parts Destroyed 46 | . . . . . 4 7 2 1 . . . 2 1 1 . 1 11 8 1 . . 3 1 . . . 1 . . . 1 1 . . . Critical Strikes 155 | . 2 1 7 . 12 8 7 9 . . . 3 1 3 8 4 17 10 1 1 1 3 1 . . 2 5 1 4 1 9 3 7 16 8 Burn 31 | . 2 1 7 . . . 3 7 . . . . . 2 8 . . 1 . . . . . . . . . . . . . . . . . Meltdown 11 | . . . . . . . . . . . . . . . . . . . . . . . . . . 1 . . 3 1 3 . . 1 2 Destroy 64 | . . . . . 10 8 4 2 . . . 3 1 1 . 4 17 9 1 . . . . . . . . . 1 . 2 1 . . . Blast 7 | . . . . . . . . . . . . . . . . . . . . . . . . . . . . 1 . . . . . . 6 Corrupt 2 | . . . . . . . . . . . . . . . . . . . . 1 1 . . . . . . . . . . . . . . Sever 35 | . . . . . 2 . . . . . . . . . . . . . . . . . . . . 1 4 . . . 4 2 7 15 . Detonate 5 | . . . . . . . . . . . . . . . . . . . . . . 3 1 . . . 1 . . . . . . . . Melee Attacks 102 | . . . . . . . . 25 2 5 4 1 1 6 1 . . 8 1 . . 16 1 5 . 2 9 1 1 5 4 . . . 4 Kinetic 13 | . . . . . . . . . . . . . . . . . . . . . . . . . . . . . . 5 4 . . . 4 Impact . | . . . . . . . . . . . . . . . . . . . . . . . . . . . . . . . . . . . . Slashing 49 | . . . . . . . . 25 2 5 4 1 1 6 1 . . 4 . . . . . . . . . . . . . . . . . Piercing 40 | . . . . . . . . . . . . . . . . . . 4 1 . . 16 1 5 . 2 9 1 1 . . . . . . Sneak Attacks 14 | . . . . . . . . 2 . 5 . . . . . . . . . . . . 1 . . 1 4 1 . . . . . . . Combat Hostiles . | . . . . . . . . . . . . . . . . . . . . . . . . . . . . . . . . . . . . Follow-up Attacks . | . . . . . . . . . . . . . . . . . . . . . . . . . . . . . . . . . . . . Damage Inflicted 87418 | 90 1211 276 2520 87 1265 628 1789 3911 . 943 . 1256 101 737 2111 95 1580 4449 739 278 1595 2005 606 189 825 1348 1151 797 4426 996 12024 503 6376 7818 22693 Guns 21249 | 90 797 276 1897 82 606 594 1319 2805 . 259 . 641 101 727 2111 95 1580 1759 422 28 . 980 135 . . . 300 . 1620 162 1632 95 136 . . Cannons 43089 | . . . . . . . . . . . . . . . . . . 813 317 250 488 382 66 189 252 550 . 541 2192 677 8108 408 6240 7006 14610 Explosions 20714 | . 398 . 623 . 467 34 470 978 . 296 . 537 . . . . . 1866 . . 1107 643 318 . 573 552 75 180 614 . 2189 . . 812 7982 Melee 1719 | . . . . . . . . 128 . 388 . 78 . . . . . . . . . . 87 . . 78 549 76 . 157 77 . . . 101 Ramming 60 | . 16 . . 5 . . . . . . . . . 10 . . . 11 . . . . . . . . . . . . 18 . . . . Kinetic 19976 | 39 359 124 688 82 606 560 559 861 . 155 . 373 101 364 910 95 1006 1294 326 28 65 245 . 189 109 158 . 294 1620 319 1709 95 136 . 6507 Thermal 28539 | 51 438 152 1209 . 192 68 760 2420 . 104 . 268 . 363 1201 . 574 1463 96 . 185 643 318 . 143 560 302 247 2192 541 4216 . 30 920 8883 Explosive 13909 | . 398 . 623 . 467 . 470 182 . 296 . 537 . . . . . 773 . . 922 . . . 573 552 . 180 . . 1371 . . 812 5753 Electromagnetic 6747 | . . . . . . . . 320 . . . . . . . . . 908 317 250 423 137 66 . . . . . 614 136 1604 . 74 348 1550 Impact . | . . . . . . . . . . . . . . . . . . . . . . . . . . . . . . . . . . . . Slashing 15982 | . . . . . . . . 128 . 388 . 78 . . . . . . . . . . . . . . . . . . 3106 408 6136 5738 . Piercing 790 | . . . . . . . . . . . . . . . . . . . . . . . 87 . . 78 549 76 . . . . . . . Entropic 1415 | . . . . . . . . . . . . . . . . . . . . . . 980 135 . . . 300 . . . . . . . . Highest Corruption 39 | . 4 4 . . . . . 3 3 3 3 . . . 2 2 2 4 . . . . . 2 2 2 19 19 6 13 33 . 8 10 39 Average Corruption 10 | . 3 4 . . . . . 2 3 3 3 . . . 1 2 1 2 . . . . . 2 2 2 11 19 3 8 18 . 8 4 22 Corruption Purged 52 | . . . . . . . . . . . . . . . . . 2 . . . . . . . . . 2 . 8 1 . . . . 39 Corruption Blocked 27 | . . . . . . . . . . . . . . . . . . . . . . . . . . . . . . . . 27 . . . Effects 506 | . 14 8 . . . . . 17 6 13 . . . . 7 4 1 1 . . . . . 2 5 10 13 58 9 20 146 . 9 23 140 Message Errors 120 | . 6 3 . . . . . 5 1 4 . . . . 2 . . . . . . . . 1 . 2 4 10 2 4 34 . 1 8 33 Matter Fused 121 | . 4 2 . . . . . 2 . 2 . . . . 4 1 1 1 . . . . . 1 1 5 . 12 4 6 32 . 6 5 32 Heat Flow Errors 68 | . . 2 . . . . . 3 2 3 . . . . . . . . . . . . . . 2 . 3 10 . 2 19 . 1 2 19 Energy Discharges 62 | . 2 . . . . . . 3 1 1 . . . . 1 3 . . . . . . . . 1 1 2 7 . 3 20 . . 2 15 Parts Rejected 4 | . . . . . . . . . . . . . . . . . . . . . . . . . . . . . . . 1 . . . 3 Data Loss (minor) 43 | . . . . . . . . 2 . . . . . . . . . . . . . . . . 1 1 3 8 1 1 14 . 1 3 8 Data Loss (major) 16 | . . . . . . . . . 2 1 . . . . . . . . . . . . . . . 1 . 2 . . 4 . . 1 5 Misfires 16 | . . 1 . . . . . 1 . . . . . . . . . . . . . . . . . . 1 3 . 2 4 . . 1 3 Alerts 15 | . . . . . . . . . . 2 . . . . . . . . . . . . . . . . . 4 . 1 4 . . 1 3 Misdirections 5 | . . . . . . . . . . . . . . . . . . . . . . . . . . . . . . . 1 . . . 4 Weapon Failures 36 | . 2 . . . . . . 1 . . . . . . . . . . . . . . . . . . . 2 2 1 13 . . . 15 Overload Shots . | . . . . . . . . . . . . . . . . . . . . . . . . . . . . . . . . . . . . Overflow Damage 2081 | . 13 . 42 . 19 9 11 181 . 52 . 1 . . . . . 41 7 . . 25 60 8 23 49 5 78 169 . 310 . 81 96 801 Projectiles 1148 | . . . . . 19 . . . . . . . . . . . . 40 7 . . . . 8 . 49 . 6 154 . 265 . 81 96 423 Explosions 706 | . 13 . 42 . . 9 11 143 . . . 1 . . . . . 1 . . . 25 . . 23 . . . 15 . 45 . . . 378 Melee 227 | . . . . . . . . 38 . 52 . . . . . . . . . . . . 60 . . . 5 72 . . . . . . . Knockbacks 18 | . 2 . . . . . . . . . . . . . . . . 1 . . 1 . . . . 1 . . . . . . . . 13 Impact 3 | . 2 . . . . . . . . . . . . . . . . 1 . . . . . . . . . . . . . . . . . Kinetic 15 | . . . . . . . . . . . . . . . . . . . . . 1 . . . . 1 . . . . . . . . 13 Secondary . | . . . . . . . . . . . . . . . . . . . . . . . . . . . . . . . . . . . . Self-Inflicted Damage 1125 | . 106 . . . 36 . 100 163 . . . . . 28 . . . 248 . . 88 . 84 . 111 26 . . . . 118 . . . 17 Shots 34 | . 3 . . . 1 . 1 4 . . . . . 2 . . . 6 . . 1 . 1 . 3 1 . . . . 8 . . . 3 Rammed 3 | . 1 . . 1 . . . . . . . . . . . . . . . . . . . . . . 1 . . . . . . . . Targets Rammed 7 | . 2 . . 1 . . . . . . . . . 1 . . . 1 . . . . . . . . 1 . . . 1 . . . . Kicked 3 | . . . . . . . . . . . . . . 1 . . . 1 . . . . . . . . . . . . 1 . . . . Crushed 1 | . 1 . . . . . . . . . . . . . . . . . . . . . . . . . . . . . . . . . . Highest Temperature 552 | 20 99 231 232 . 60 98 204 275 83 261 . 158 68 166 162 8 337 364 93 169 295 58 31 . 178 . 148 239 287 246 552 32 258 324 162 Average Temperature 65 | 10 27 69 62 . 22 39 53 69 42 71 . 59 39 63 34 5 90 74 46 69 159 19 20 . 46 . 73 87 64 66 91 19 91 60 31 Received Heat Transfer 3738 | . 78 117 384 . . . 171 342 . 18 . 18 36 84 170 17 9 438 117 21 162 60 22 . . 7 112 30 72 26 694 17 29 38 449 Effects 15 | . . . . . . . . 5 . . . . . . . . 2 1 . . . . . . . . . 1 4 . 1 . 1 . . Shutdowns 1 | . . . . . . . . . . . . . . . . . . . . . . . . . . . . . . . 1 . . . . Energy Bleed 3 | . . . . . . . . . . . . . . . . . 1 1 . . . . . . . . . 1 . . . . . . . Interference 10 | . . . . . . . . 5 . . . . . . . . . . . . . . . . . . . . 4 . . . 1 . . Short Circuit 1 | . . . . . . . . . . . . . . . . . 1 . . . . . . . . . . . . . . . . . . Siege Activations 13 | . . . . . . . . . . . . . . . . . . 2 . . 2 1 . . . . 4 . . 1 . . . . 3 Total Turns 392 | . . . . . . . . . . . . . . . . . . 27 . . 43 38 . . . . 57 . . 14 . . . . 213 Longest Duration 167 | . . . . . . . . . . . . . . . . . . 23 . . 31 38 . . . . 52 . . 14 . . . . 167 Robots Corrupted 16 | . . . . . . . . . . . . . . . . . . 1 2 2 1 . . . . . . . 1 . 1 . . . 8 Combat Hostiles 15 | . . . . . . . . . . . . . . . . . . . 2 2 1 . . . . . . . 1 . 1 . . . 8 Parts Fried 57 | . . . . . . . . . . 1 . . . . . . . 7 2 . 1 . . . . . . . 7 2 16 . 2 6 13 Impact Corruptions . | . . . . . . . . . . . . . . . . . . . . . . . . . . . . . . . . . . . . Robots Melted 16 | . . . 1 . . . . 2 . . . . . . . . . . . . . . . . . 2 1 . 3 1 3 . . 1 2 Combat Hostiles 11 | . . . 1 . . . . 2 . . . . . . . . . . . . . . . . . 1 . . 1 1 3 . . 1 1 Parts Melted 77 | . . 3 6 . 5 . 5 6 . 1 . . . 1 8 . 1 1 . . . . . . . 8 1 . 8 6 11 . . 2 4 Heat Transferred 31796 | 148 1443 518 3367 . 506 124 1665 4605 . 185 . 294 . 888 3182 . 759 927 148 . 100 400 200 . 148 777 568 185 1813 407 3369 . 37 814 4219 Parts Sabotaged 3 | . . . . . . . . . . . . . . . . . . . . . . . . . . . . . . . . . . . 3 Parts Stolen . | . . . . . . . . . . . . . . . . . . . . . . . . . . . . . . . . . . . . Parts Stripped . | . . . . . . . . . . . . . . . . . . . . . . . . . . . . . . . . . . . . Power Chain Reactions 10 | . . . . . . . . 2 . . . . . . . . . 1 . . 1 . . . . . . . 1 . 2 . . . 3 Missiles Intercepted 6 | . . . . . . . . . . . . . . . . . . . . . . . . . . . . . . . . . . . 6 Alert | -11 -10 -10 -9 -9 -9 -8 -8 -7 -7 -7 -7 -7 -6 -6 -6 -6 -6 -6 -5 -5 -5 -5 -4 -4 -4 -4 -4 -3 -3 -3 -3 -2 -2 -1 -1 ------- Run | Scr Mat Min Mat Min Exi Min Mat Fac Low Low Zio Dee Pro Fac Ext Cet Arc Hub Fac Upp Upp War Pro Fac Upp Upp Zhi Pro Res Qua Sec Res Tes Acc Com Peak Influence 1547 | 10 387 184 642 223 . 55 203 621 . . . . . 205 657 591 491 1467 877 . . . . 124 . . . . 555 297 1547 940 724 1496 1364 Initial 861 | . 6 74 . 217 . . 21 53 . . . . . . 10 271 236 171 711 . . . . 56 . . . . 30 248 87 861 465 385 613 Average 420 | 7 257 116 407 211 . 22 93 269 . . . . . 79 262 429 441 701 779 . . . . 79 . . . . 263 140 532 869 479 894 999 Maximum Alert Level 5 | . 1 . 2 1 . . 1 2 . . . . . 1 2 2 2 4 3 . . . . . . . . . 2 1 4 3 3 4 5 Low Security (%) 32 | 100 21 100 24 31 . 100 99 51 . . . . . 84 50 . . 6 . . . . . 100 . . . . 37 72 22 . . . . Level 1 18 | . 78 . 16 68 . . . 21 . . . . . 15 28 63 11 19 . . . . . . . . . . 38 27 13 . 21 9 . Level 2 24 | . . . 58 . . . . 26 . . . . . . 20 36 88 21 1 . . . . . . . . . 24 . 46 . 76 25 5 Level 3 10 | . . . . . . . . . . . . . . . . . . 37 98 . . . . . . . . . . . 4 100 1 33 19 Level 4 8 | . . . . . . . . . . . . . . . . . . 15 . . . . . . . . . . . . 13 . . 31 32 Level 5 5 | . . . . . . . . . . . . . . . . . . . . . . . . . . . . . . . . . . . 42 High Security . | . . . . . . . . . . . . . . . . . . . . . . . . . . . . . . . . . . . . Max Security . | . . . . . . . . . . . . . . . . . . . . . . . . . . . . . . . . . . . . Squads Dispatched 82 | . 2 . 2 . . . 1 8 . . . . . 2 2 . . 7 1 . 1 . . . . . . . 5 4 18 . 6 11 12 Investigation 9 | . 1 . . . . . 1 1 . . . . . . . . . 3 . . . . . . . . . . . 1 1 . . 1 . Extermination 28 | . . . . . . . . 2 . . . . . 2 . . . . . . . . . . . . . . 3 3 9 . 4 3 2 Reinforcement 28 | . 1 . 2 . . . . 3 . . . . . . 2 . . 3 . . . . . . . . . . . . 6 . 1 3 7 Assault 13 | . . . . . . . . . . . . . . . . . . 1 1 . 1 . . . . . . . 1 . 2 . 1 3 3 Garrison 4 | . . . . . . . . 2 . . . . . . . . . . . . . . . . . . . . 1 . . . . 1 . Intercept . | . . . . . . . . . . . . . . . . . . . . . . . . . . . . . . . . . . . . Searches Triggered . | . . . . . . . . . . . . . . . . . . . . . . . . . . . . . . . . . . . . Construction Impeded 5 | . . . 1 . . . . 2 . . . . . . . . . . . . . . . . . . . . . . 1 . . 1 . Haulers Reinforced 3 | . . . . . . . . . . . . . . . . . . 1 . . . . . . . . . . . . 1 . . 1 . Active Scanning Responses . | . . . . . . . . . . . . . . . . . . . . . . . . . . . . . . . . . . . . Cargo Convoy Interrupts . | . . . . . . . . . . . . . . . . . . . . . . . . . . . . . . . . . . . . Stealth | -11 -10 -10 -9 -9 -9 -8 -8 -7 -7 -7 -7 -7 -6 -6 -6 -6 -6 -6 -5 -5 -5 -5 -4 -4 -4 -4 -4 -3 -3 -3 -3 -2 -2 -1 -1 --------- Run | Scr Mat Min Mat Min Exi Min Mat Fac Low Low Zio Dee Pro Fac Ext Cet Arc Hub Fac Upp Upp War Pro Fac Upp Upp Zhi Pro Res Qua Sec Res Tes Acc Com Distress Signals 44 | . 1 . 1 . . . 2 6 . . . . . 1 3 2 . 1 . . . 1 . . . . . . 1 . . 6 . 1 18 Communications Jammed 295 | . . . . . . . . . . . . . . 21 . . . 101 9 . . 34 . . . . . . 3 8 78 . 17 23 1 Distress Signals 294 | . . . . . . . . . . . . . . 21 . . . 100 9 . . 34 . . . . . . 3 8 78 . 17 23 1 Times Spotted 671 | . 21 4 44 8 44 2 26 36 2 6 . 13 2 7 36 7 15 49 5 5 14 22 4 2 7 9 3 6 25 15 82 2 38 38 72 Peak Tracking Total 16 | . 3 2 5 6 9 2 5 4 1 4 . 4 1 3 4 5 2 16 3 2 8 11 4 1 3 4 3 3 4 5 11 1 5 6 12 Tactical Retreats 46 | . 1 . . . 16 . 1 1 1 . . . 1 . 2 . . 4 . 1 1 . . 1 2 . . 6 . . 4 . . 3 1 Traps | -11 -10 -10 -9 -9 -9 -8 -8 -7 -7 -7 -7 -7 -6 -6 -6 -6 -6 -6 -5 -5 -5 -5 -4 -4 -4 -4 -4 -3 -3 -3 -3 -2 -2 -1 -1 ------- Run | Scr Mat Min Mat Min Exi Min Mat Fac Low Low Zio Dee Pro Fac Ext Cet Arc Hub Fac Upp Upp War Pro Fac Upp Upp Zhi Pro Res Qua Sec Res Tes Acc Com Traps Triggered 21 | . 2 . . . . . . 2 . . . . . . . . . 3 3 . . . . . . . . . . 2 2 . 1 5 1 Indirectly 3 | . . . . . . . . 1 . . . . . . . . . 2 . . . . . . . . . . . . . . . . . Trap Hack Attempts . | . . . . . . . . . . . . . . . . . . . . . . . . . . . . . . . . . . . . Triggered . | . . . . . . . . . . . . . . . . . . . . . . . . . . . . . . . . . . . . Disarmed . | . . . . . . . . . . . . . . . . . . . . . . . . . . . . . . . . . . . . Reprogrammed . | . . . . . . . . . . . . . . . . . . . . . . . . . . . . . . . . . . . . Reused 1 | . . . . . . . . . . . . . . . . . . . . . . . . . . . . 1 . . . . . . . Traps Extracted . | . . . . . . . . . . . . . . . . . . . . . . . . . . . . . . . . . . . . Installed 7 | . . . . . . . . . . . . . . . . . . . . . . . . . . . . 7 . . . . . . . Triggered 13 | . . . . . . . . . 1 . . . . . . . . . . . . 11 . . . . . 1 . . . . . . . Most Traps Carried 3 | . . . . . . . . . . . . . . . . . . . . . . . . . . . . 3 . . . . . . . Exploded 3 | . . . . . 3 . . . . . . . . . . . . . . . . . . . . . . . . . . . . . . Machines | -11 -10 -10 -9 -9 -9 -8 -8 -7 -7 -7 -7 -7 -6 -6 -6 -6 -6 -6 -5 -5 -5 -5 -4 -4 -4 -4 -4 -3 -3 -3 -3 -2 -2 -1 -1 ---------- Run | Scr Mat Min Mat Min Exi Min Mat Fac Low Low Zio Dee Pro Fac Ext Cet Arc Hub Fac Upp Upp War Pro Fac Upp Upp Zhi Pro Res Qua Sec Res Tes Acc Com Machines Disabled 105 | . 1 . 2 . 7 1 3 5 . . . 2 . 3 5 . 3 20 1 . 2 4 . . . . 1 . 6 10 16 . 6 3 4 Max in Single Turn 5 | . 1 . 1 . 1 1 2 3 . . . 1 . 2 1 . 1 5 1 . 1 1 . . . . 1 . 1 1 3 . 1 1 2 Garrison Access 8 | . . . . . . . 1 1 . . . . . . . . . 1 1 . . . . . . . . . 1 . . 1 . 2 . Phase Generator 1 | . . . . . . . . . . . . . . . . . . . . . . . . . . . . . . . . . . . 1 Network Hub 2 | . . . . . . . . . . . . . . . . . . 2 . . . . . . . . . . . . . . . . . Machines Sabotaged . | . . . . . . . . . . . . . . . . . . . . . . . . . . . . . . . . . . . . Garrisons Compromised . | . . . . . . . . . . . . . . . . . . . . . . . . . . . . . . . . . . . . Overloaded Fab Kills . | . . . . . . . . . . . . . . . . . . . . . . . . . . . . . . . . . . . . Hacking | -11 -10 -10 -9 -9 -9 -8 -8 -7 -7 -7 -7 -7 -6 -6 -6 -6 -6 -6 -5 -5 -5 -5 -4 -4 -4 -4 -4 -3 -3 -3 -3 -2 -2 -1 -1 --------- Run | Scr Mat Min Mat Min Exi Min Mat Fac Low Low Zio Dee Pro Fac Ext Cet Arc Hub Fac Upp Upp War Pro Fac Upp Upp Zhi Pro Res Qua Sec Res Tes Acc Com Machines Accessed 134 | . 6 1 8 1 . . 10 11 . 1 . . . 2 9 1 . 10 5 1 . 3 . 4 . 1 4 . 7 9 9 2 13 10 6 Terminals 91 | . 5 . 6 1 . . 7 6 . . . . . . 9 1 . 9 2 . . . . 1 . . . . 4 7 8 1 10 8 6 Fabricators 6 | . . . . . . . . 1 . . . . . 2 . . . . . . . . . 1 . . . . 1 . . . 1 . . Repair Stations 4 | . . . 1 . . . . 1 . . . . . . . . . . 1 . . . . 1 . . . . . . . . . . . Recycling Units 5 | . 1 . . . . . 1 1 . . . . . . . . . . 2 . . . . . . . . . . . . . . . . Scanalyzers 9 | . . . 1 . . . 1 1 . . . . . . . . . . . . . . . 1 . . . . 1 1 1 . 2 . . Garrison Access 8 | . . . . . . . 1 1 . . . . . . . . . 1 . . . . . . . . . . 1 1 . 1 . 2 . Total Hacks 418 | . 14 1 27 4 . . 38 27 . 1 . . . 4 18 1 . 21 20 1 . 3 . 17 . 1 17 . 26 43 20 3 55 35 21 Successful 196 | . 8 1 13 3 . . 22 18 . 1 . . . 1 12 1 . 9 9 1 . 3 . 7 . 1 17 . 10 15 7 1 15 11 10 Failed 222 | . 6 . 14 1 . . 16 9 . . . . . 3 6 . . 12 11 . . . . 10 . . . . 16 28 13 2 40 24 11 Catastrophic 52 | . . . . . . . 2 3 . . . . . . 1 . . 5 2 . . . . 4 . . . . 3 8 4 1 10 9 . Database Lockouts . | . . . . . . . . . . . . . . . . . . . . . . . . . . . . . . . . . . . . Manual 106 | . 2 . . 4 . . 7 11 . . 5 . . . 4 1 . 11 7 . . . . 1 . . . . 8 10 3 . 11 17 4 Terminals 301 | . 13 . 16 4 . . 26 17 . . . . . . 18 1 . 20 7 . . . . 10 . . . . 18 34 17 1 46 32 21 Fabricators 14 | . . . . . . . . 2 . . . . . 4 . . . . . . . . . 3 . . . . 3 . . . 2 . . Repair Stations 17 | . . . 8 . . . . 2 . . . . . . . . . . 5 . . . . 2 . . . . . . . . . . . Recycling Units 15 | . 1 . . . . . 5 1 . . . . . . . . . . 8 . . . . . . . . . . . . . . . . Scanalyzers 32 | . . . 3 . . . 6 3 . . . . . . . . . . . . . . . 2 . . . . 4 4 3 . 7 . . Garrison Access 15 | . . . . . . . 1 2 . . . . . . . . . 1 . . . . . . . . . . 1 5 . 2 . 3 . Terminal Hacks 127 | . 7 1 5 3 . . 9 7 . 1 . . . . 10 1 . 4 2 1 . 3 . 2 . 1 17 . 4 13 6 . 10 10 10 Record 8 | . . . . . . . . . . . . . . . . . . . . . . 2 . . . . 5 . . 1 . . . . . Part Schematic 5 | . . . . . . . . 1 . . . . . . . . . . . . . . . . . . 4 . . . . . . . . Robot Analysis 7 | . . . . . . . . . . . . . . . . . . . . . . . . . . . 4 . . . . . . . 3 Prototype ID Bank 16 | . 2 . 2 1 . . 1 1 . . . . . . . . . . . . . . . 1 . . 4 . . 1 1 . 2 . . Open Door 21 | . . 1 . . . . . . . 1 . . . . 5 1 . . . 1 . 1 . . . 1 . . 1 . 4 . 1 3 1 Level Access Points 1 | . . . . . . . . . . . . . . . . . . . . . . . . . . . . . . . . . 1 . . Branch Access Points 4 | . . . . . . . . 1 . . . . . . . . . . 1 . . . . . . . . . . 1 . . . 1 . Emergency Access Points 2 | . 1 . 1 . . . . . . . . . . . . . . . . . . . . . . . . . . . . . . . . Machine Index 1 | . . . . . . . . . . . . . . . . . . . . . . . . . . . . . . . . . . . 1 Terminal Index 6 | . . . . 1 . . 1 1 . . . . . . . . . . . . . . . . . . . . . 2 . . . 1 . Scanalyzer Index 1 | . . . . . . . 1 . . . . . . . . . . . . . . . . . . . . . . . . . . . . Alert Level 4 | . . . . . . . . . . . . . . . . . . 1 . . . . . . . . . . 1 . 1 . 1 . . Unreport Threat 16 | . . . . . . . 2 . . . . . . . 1 . . . . . . . . . . . . . 1 4 . . 3 4 1 Locate Traps 14 | . 2 . 1 . . . 2 2 . . . . . . 1 . . 1 1 . . . . . . . . . 1 . . . 1 . 2 Dispatch Records 1 | . . . . . . . . . . . . . . . 1 . . . . . . . . . . . . . . . . . . . . Maintenance Status 1 | . . . . . . . . . . . . . . . . . . 1 . . . . . . . . . . . . . . . . . Security Status 1 | . . . . . . . . . . . . . . . . . . . . . . . . . . . . . . 1 . . . . . Transport Status 1 | . . . . . . . . . . . . . . . . . . . . . . . . . . . . . . . . . . . 1 Recall Extermination 1 | . . . . . . . . . . . . . . . . . . . . . . . . . . . . . . 1 . . . . . Recall Reinforcements 1 | . . . . . . . . . . . . . . . 1 . . . . . . . . . . . . . . . . . . . . Hauler Manifests 3 | . 1 . . . . . . . . . . . . . 1 . . . . . . . . . . . . . . 1 . . . . . Registered Components 1 | . . . 1 . . . . . . . . . . . . . . . . . . . . . . . . . . . . . . . . Registered Prototypes 1 | . . . . . . . . . . . . . . . . . . . . . . . . . . . . . . 1 . . . . . Zone Layout 9 | . 1 . . 1 . . 2 1 . . . . . . . . . 1 . . . . . 1 . . . . . . . . 1 1 . Disengage Seal 1 | . . . . . . . . . . . . . . . . . . . . . . . . . . . . . . . . . . . 1 Fabricator Hacks 6 | . . . . . . . . 1 . . . . . 1 . . . . . . . . . 1 . . . . 2 . . . 1 . . Network Status 3 | . . . . . . . . . . . . . . . . . . . . . . . . 1 . . . . 1 . . . 1 . . Load Schematic 2 | . . . . . . . . . . . . . . 1 . . . . . . . . . . . . . . 1 . . . . . . Build 1 | . . . . . . . . 1 . . . . . . . . . . . . . . . . . . . . . . . . . . . Repair Station Hacks 11 | . . . 6 . . . . 2 . . . . . . . . . . 2 . . . . 1 . . . . . . . . . . . Scan Component 6 | . . . 3 . . . . 1 . . . . . . . . . . 1 . . . . 1 . . . . . . . . . . . Repair 5 | . . . 3 . . . . 1 . . . . . . . . . . 1 . . . . . . . . . . . . . . . . Recycling Unit Hacks 5 | . . . . . . . 3 1 . . . . . . . . . . 1 . . . . . . . . . . . . . . . . Report Inventory 1 | . . . . . . . 1 . . . . . . . . . . . . . . . . . . . . . . . . . . . . Retrieve Components 4 | . . . . . . . 2 1 . . . . . . . . . . 1 . . . . . . . . . . . . . . . . Scanalyzer 18 | . . . 2 . . . 5 3 . . . . . . . . . . . . . . . 2 . . . . 1 2 1 . 2 . . Insert Component 12 | . . . 1 . . . 3 1 . . . . . . . . . . . . . . . 1 . . . . 1 2 1 . 2 . . Analyze 6 | . . . 1 . . . 2 2 . . . . . . . . . . . . . . . 1 . . . . . . . . . . . Garrison Access Hacks 3 | . . . . . . . 1 1 . . . . . . . . . . . . . . . . . . . . . . . 1 . . . Seal Access 3 | . . . . . . . 1 1 . . . . . . . . . . . . . . . . . . . . . . . 1 . . . Unauthorized Hacks 26 | . 1 . . . . . 4 3 . . . . . . 2 . . 5 4 . . . . 1 . . . . 3 . . . 2 1 . Terminals 20 | . . . . . . . 4 3 . . . . . . 2 . . 5 . . . . . 1 . . . . 2 . . . 2 1 . Track 2 | . . . . . . . . . . . . . . . . . . 2 . . . . . . . . . . . . . . . . . Assimilate 3 | . . . . . . . . 1 . . . . . . . . . . . . . . . 1 . . . . 1 . . . . . . Botnet 8 | . . . . . . . 3 1 . . . . . . 1 . . . . . . . . . . . . . . . . . 2 1 . Operators 5 | . . . . . . . 1 1 . . . . . . 1 . . 1 . . . . . . . . . . 1 . . . . . . Sabotage 2 | . . . . . . . . . . . . . . . . . . 2 . . . . . . . . . . . . . . . . . Fabricators 1 | . . . . . . . . . . . . . . . . . . . . . . . . . . . . . 1 . . . . . . Haulers 1 | . . . . . . . . . . . . . . . . . . . . . . . . . . . . . 1 . . . . . . Repair Stations 1 | . . . . . . . . . . . . . . . . . . . 1 . . . . . . . . . . . . . . . . Mechanics 1 | . . . . . . . . . . . . . . . . . . . 1 . . . . . . . . . . . . . . . . Recycling Units 4 | . 1 . . . . . . . . . . . . . . . . . 3 . . . . . . . . . . . . . . . . Reject 2 | . . . . . . . . . . . . . . . . . . . 2 . . . . . . . . . . . . . . . . Recyclers 1 | . . . . . . . . . . . . . . . . . . . 1 . . . . . . . . . . . . . . . . Tunnel 1 | . 1 . . . . . . . . . . . . . . . . . . . . . . . . . . . . . . . . . . Scanalyzers . | . . . . . . . . . . . . . . . . . . . . . . . . . . . . . . . . . . . . Garrison Access . | . . . . . . . . . . . . . . . . . . . . . . . . . . . . . . . . . . . . Data Cores Recovered 1 | . . . . . . . . 1 . . . . . . . . . . . . . . . . . . . . . . . . . . . Used 1 | . . . . . . . . 1 . . . . . . . . . . . . . . . . . . . . . . . . . . . Hacking Detections 102 | . 4 . 8 1 . . 9 10 . . . . . 2 7 . . 8 4 . . . . 4 . . . . 5 9 4 1 12 10 4 Full Trace Events 3 | . . . . . . . 1 . . . . . . . . . . . . . . . . . . . . . . 1 . . . 1 . Feedback Events 1 | . . . . . . . . . . . . . . . . . . . . . . . . . . . . . . . . . . 1 . Corruption 1 | . . . . . . . . . . . . . . . . . . . . . . . . . . . . . . . . . . 1 . Feedback Blocked . | . . . . . . . . . . . . . . . . . . . . . . . . . . . . . . . . . . . . Robot Schematics Acquired 5 | . . . . . . . . . . . 4 . . . . . . . . . . . . . . . . . . . . . 1 . . Robots Built 2 | . . . . . . . . 2 . . . . . . . . . . . . . . . . . . . . . . . . . . . Authchips . | . . . . . . . . . . . . . . . . . . . . . . . . . . . . . . . . . . . . Time 67 | . . . . . . . . 67 . . . . . . . . . . . . . . . . . . . . . . . . . . . Total Robot Build Rating 8 | . . . . . . . . 8 . . . . . . . . . . . . . . . . . . . . . . . . . . . Part Schematics Acquired 27 | . . . 1 . . . 2 2 . . 15 . . . . . . . . . . . . 1 . . 4 . . . . . 2 . . Parts Built . | . . . . . . . . . . . . . . . . . . . . . . . . . . . . . . . . . . . . Authchips . | . . . . . . . . . . . . . . . . . . . . . . . . . . . . . . . . . . . . Time . | . . . . . . . . . . . . . . . . . . . . . . . . . . . . . . . . . . . . Total Part Build Rating . | . . . . . . . . . . . . . . . . . . . . . . . . . . . . . . . . . . . . Parts Repaired 5 | . . . 3 . . . . 1 . . . . . . . . . . 1 . . . . . . . . . . . . . . . . Time 248 | . . . 84 . . . . 56 . . . . . . . . . . 108 . . . . . . . . . . . . . . . . Parts Recycled . | . . . . . . . . . . . . . . . . . . . . . . . . . . . . . . . . . . . . Recycled Matter . | . . . . . . . . . . . . . . . . . . . . . . . . . . . . . . . . . . . . Retrieved Matter . | . . . . . . . . . . . . . . . . . . . . . . . . . . . . . . . . . . . . Retrieved Components 10 | . . . . . . . . 8 . . . . . . . . . . 2 . . . . . . . . . . . . . . . . Parts Scanalyzed 5 | . . . 1 . . . 2 1 . . . . . . . . . . . . . . . 1 . . . . . . . . . . . Part Schematics Acquired 5 | . . . 1 . . . 2 1 . . . . . . . . . . . . . . . 1 . . . . . . . . . . . Parts Damaged 1 | . . . . . . . 1 . . . . . . . . . . . . . . . . . . . . . . . . . . . . Bothacking | -11 -10 -10 -9 -9 -9 -8 -8 -7 -7 -7 -7 -7 -6 -6 -6 -6 -6 -6 -5 -5 -5 -5 -4 -4 -4 -4 -4 -3 -3 -3 -3 -2 -2 -1 -1 ------------ Run | Scr Mat Min Mat Min Exi Min Mat Fac Low Low Zio Dee Pro Fac Ext Cet Arc Hub Fac Upp Upp War Pro Fac Upp Upp Zhi Pro Res Qua Sec Res Tes Acc Com Used RIF Installer . | . . . . . . . . . . . . . . . . . . . . . . . . . . . . . . . . . . . . Robots Hacked 1 | . . . . . . . . . . . . . . . . . . . . . . . . . . . . . . . . . . . 1 Non-combat . | . . . . . . . . . . . . . . . . . . . . . . . . . . . . . . . . . . . . Combat . | . . . . . . . . . . . . . . . . . . . . . . . . . . . . . . . . . . . . Robot Hacks Applied . | . . . . . . . . . . . . . . . . . . . . . . . . . . . . . . . . . . . . Manual 1 | . . . . . . . . . . . . . . . . . . . . . . . . . . . . . . . . . . . 1 Relay Couplers Released 10 | . . . . . . . . . . . . . . . . . . 1 2 . . . . . . . . . 1 . . . 4 2 . Machine Destruction 6 | . . . . . . . . . . . . . . . . . . 1 2 . . . . . . . . . 1 . . . . 2 . Programmers 4 | . . . . . . . . . . . . . . . . . . . . . . . . . . . . . . . . . 4 . . Fabnet Peak Effective % . | . . . . . . . . . . . . . . . . . . . . . . . . . . . . . . . . . . . . Robots Rewired 19 | . . . . . . . . . . . . . . . 14 . . . . . 1 4 . . . . . . . . . . . . . Allies Hacked . | . . . . . . . . . . . . . . . . . . . . . . . . . . . . . . . . . . . . Hacks Repelled . | . . . . . . . . . . . . . . . . . . . . . . . . . . . . . . . . . . . . Allies | -11 -10 -10 -9 -9 -9 -8 -8 -7 -7 -7 -7 -7 -6 -6 -6 -6 -6 -6 -5 -5 -5 -5 -4 -4 -4 -4 -4 -3 -3 -3 -3 -2 -2 -1 -1 -------- Run | Scr Mat Min Mat Min Exi Min Mat Fac Low Low Zio Dee Pro Fac Ext Cet Arc Hub Fac Upp Upp War Pro Fac Upp Upp Zhi Pro Res Qua Sec Res Tes Acc Com Total Allies 42 | . . . . 3 . . . 3 . . 2 1 . . 23 3 . . . . 1 4 . 1 . . . . 1 . . . . . . Largest Group 14 | . . . . 3 . . . 2 2 1 2 3 . . 14 14 9 . . . 1 5 . 1 1 . . . 1 . . . . . . Highest-Rated Group 627 | . . . . 40 . . . 74 74 37 192 311 . . 519 627 510 . . . 49 256 . 10 10 . . . 26 . . . . . . Highest-Rated Ally 159 | . . . . 16 . . . 37 37 37 96 119 . . 159 149 127 . . . 49 68 . 10 10 . . . 26 . . . . . . Total Orders 24 | . . . . . 4 1 . . . . . . . . 2 . 3 . . . . 6 . . . . 8 . . . . . . . . STAY 9 | . . . . . . . . . . . . . . . 1 . 2 . . . . 6 . . . . . . . . . . . . . FOLLOW 2 | . . . . . . . . . . . . . . . 1 . 1 . . . . . . . . . . . . . . . . . . RETURN 13 | . . . . . 4 1 . . . . . . . . . . . . . . . . . . . . 8 . . . . . . . . Ally Attacks 495 | . . . . 13 163 6 . 3 6 3 . 50 . . 122 57 34 . . . . 21 . . . . 17 . . . . . . . . Total Damage 10135 | . . . . 116 874 58 . 58 205 67 . 1169 . . 4548 960 644 . . . . 1268 . . . . 168 . . . . . . . . Kills 50 | . . . . 1 2 . . 2 1 . . 4 . . 22 7 4 . . . . 7 . . . . . . . . . . . . . Allies Corrupted 1 | . . . . . . . . . . . . . . . . . . . . . . 1 . . . . . . . . . . . . . Allies Melted 2 | . . . . . . . . . . . . . . . . . . . . . . . . . . . . . . . . . 2 . . Intel | -11 -10 -10 -9 -9 -9 -8 -8 -7 -7 -7 -7 -7 -6 -6 -6 -6 -6 -6 -5 -5 -5 -5 -4 -4 -4 -4 -4 -3 -3 -3 -3 -2 -2 -1 -1 ------- Run | Scr Mat Min Mat Min Exi Min Mat Fac Low Low Zio Dee Pro Fac Ext Cet Arc Hub Fac Upp Upp War Pro Fac Upp Upp Zhi Pro Res Qua Sec Res Tes Acc Com Robot Analysis Total 7 | . . . . . . . . . . . . . . . . . . . . . . . . . . . 4 . . . . . . . 3 Derelict Logs Recovered 17 | . . 1 . 1 . . . . 1 1 2 . 2 . . . . . . 3 1 . 1 . 1 3 . . . . . . . . . Drone Launches 28 | . . . . . 15 3 . . . . . . . . . . . . . . . . . . . . 10 . . . . . . . . Drone Recoveries 26 | . . . . . 14 3 . . . . . . . . . . . . . . . . . . . . 9 . . . . . . . . Decoded 0b10 Intel 55 | . . . . . . . . . . . . . . . . . . . . . . . . . . . . . 55 . . . . . . Items 55 | . . . . . . . . . . . . . . . . . . . . . . . . . . . . . 55 . . . . . . Exploration | -11 -10 -10 -9 -9 -9 -8 -8 -7 -7 -7 -7 -7 -6 -6 -6 -6 -6 -6 -5 -5 -5 -5 -4 -4 -4 -4 -4 -3 -3 -3 -3 -2 -2 -1 -1 ------------- Run | Scr Mat Min Mat Min Exi Min Mat Fac Low Low Zio Dee Pro Fac Ext Cet Arc Hub Fac Upp Upp War Pro Fac Upp Upp Zhi Pro Res Qua Sec Res Tes Acc Com Turns Passed 38772 | 51 1244 529 1758 403 3670 239 1687 1933 392 647 1153 1117 1061 505 1222 236 399 784 625 1066 842 1137 318 291 673 821 919 1374 1547 1025 3064 463 1320 1245 3012 Spaces Moved 20937 | 21 629 287 593 159 1462 63 699 905 302 472 882 716 816 291 669 127 137 362 396 747 404 736 256 218 512 604 477 975 939 613 1324 297 836 803 1208 Core . | . . . . . . . . . . . . . . . . . . . . . . . . . . . . . . . . . . . . Treads 3516 | 21 629 287 593 159 1114 32 228 216 . . . . . . . 81 41 8 . . 1 . . . . . 106 . . . . . . . . Legs 15538 | . . . . . 348 . . 577 . . 445 716 816 291 669 46 96 354 396 747 403 736 256 218 512 604 371 975 939 613 1276 297 836 799 1202 Wheels 1825 | . . . . . . 31 471 112 302 472 437 . . . . . . . . . . . . . . . . . . . . . . . . Hover . | . . . . . . . . . . . . . . . . . . . . . . . . . . . . . . . . . . . . Flight . | . . . . . . . . . . . . . . . . . . . . . . . . . . . . . . . . . . . . Fastest Speed 106 | 160 160 160 160 240 126 170 130 122 115 125 120 112 115 115 115 115 120 120 120 120 120 112 112 112 112 112 106 108 110 108 108 107 107 108 110 Average Speed 140 | 160 160 160 209 240 213 205 183 154 123 125 127 134 115 115 115 146 135 122 120 120 181 118 112 112 117 114 147 108 110 121 176 127 107 108 130 Slowest Speed 400 | 160 160 160 240 240 240 240 240 400 130 125 190 190 115 115 115 210 240 240 120 120 240 260 112 112 182 182 240 108 113 178 178 177 108 180 190 Overloaded Moves . | . . . . . . . . . . . . . . . . . . . . . . . . . . . . . . . . . . . . Propulsion Burnouts . | . . . . . . . . . . . . . . . . . . . . . . . . . . . . . . . . . . . . Robots Hopped . | . . . . . . . . . . . . . . . . . . . . . . . . . . . . . . . . . . . . Cave-ins Triggered . | . . . . . . . . . . . . . . . . . . . . . . . . . . . . . . . . . . . . Teleports 1 | . . . . . . . . . . . . . . . . . . . . . . . . . . . . . . . 1 . . . . Spacefolds 23 | . . . . . . . . . . . . . . . . . . . . . . . . . . . . . . . 20 . . 1 2 Exploration Rate (%) 54 | 3 91 65 63 50 80 14 56 26 50 59 85 60 72 9 81 58 67 52 9 76 77 83 49 7 76 86 76 59 31 71 68 11 86 33 36 Regions Visited 35 Branch Regions 25 Pre-discovered Areas 12 | . 1 1 . 1 . . . . . 1 2 . . . . . . . . . 1 . 1 . . 1 3 . . . . . . . . Known Exits Taken 27 | . . . . . . . . 1 1 1 1 1 1 1 1 1 1 1 1 1 1 1 1 1 1 1 1 1 1 1 1 1 1 1 . Unknown Exits Taken 8 | 1 1 1 1 1 1 1 1 . . . . . . . . . . . . . . . . . . . . . . . . . . . . Scrap Searched 29 | . . 1 . 1 . . . . 3 3 4 . 2 . . . . . . 2 3 . 4 . 2 3 . 1 . . . . . . . Spaces Dug 359 | . 15 . 4 . 17 . . 23 2 . . . 1 6 . . . 26 6 1 . 7 2 5 11 4 . 28 41 26 32 24 8 32 38 Terrain Destroyed 1681 | . 71 . 38 . 38 22 67 70 2 12 . 40 12 47 . . 19 392 10 2 68 36 8 7 48 37 7 51 70 35 149 32 55 101 135 Melee 54 | . . . . . . . . 23 2 . . . 1 6 . . . 7 1 . . 7 . 5 . 1 . . 1 . . . . . . Projectile 501 | . . . . . 8 12 7 . . . . . . . . . 18 39 9 2 3 15 3 2 4 6 7 35 69 35 80 13 43 48 43 AOE 1096 | . 71 . 38 . 29 9 60 47 . 12 . 40 11 41 . . . 346 . . 65 14 5 . 44 30 . 16 . . 66 16 . 44 92 Terrain Rammed . | . . . . . . . . . . . . . . . . . . . . . . . . . . . . . . . . . . . . Walls Destroyed . | . . . . . . . . . . . . . . . . . . . . . . . . . . . . . . . . . . . . Machines Disabled . | . . . . . . . . . . . . . . . . . . . . . . . . . . . . . . . . . . . . Actions | -11 -10 -10 -9 -9 -9 -8 -8 -7 -7 -7 -7 -7 -6 -6 -6 -6 -6 -6 -5 -5 -5 -5 -4 -4 -4 -4 -4 -3 -3 -3 -3 -2 -2 -1 -1 --------- Run | Scr Mat Min Mat Min Exi Min Mat Fac Low Low Zio Dee Pro Fac Ext Cet Arc Hub Fac Upp Upp War Pro Fac Upp Upp Zhi Pro Res Qua Sec Res Tes Acc Com Total 27594 | 33 760 319 930 170 1886 120 996 1243 318 503 909 833 919 413 1030 176 307 563 514 897 488 949 279 250 570 669 646 1245 1261 814 1780 367 1172 1036 2229 Wait 3048 | 2 41 1 160 . 244 8 176 176 12 5 13 36 79 67 77 25 101 79 63 121 41 94 1 6 28 10 70 171 89 53 108 14 155 79 643 Move 20866 | 20 628 286 592 158 1461 62 698 904 301 471 881 715 815 290 668 126 136 361 395 746 403 735 255 217 511 603 476 974 938 612 1295 296 835 799 1203 Hop . | . . . . . . . . . . . . . . . . . . . . . . . . . . . . . . . . . . . . Pick Up 298 | 1 12 5 23 1 19 2 10 10 . . 3 12 . 4 4 3 8 4 8 . 4 7 3 5 2 2 13 16 18 17 25 14 15 6 22 Fast Attach 207 | . 2 . 6 . 10 2 17 7 . 3 1 5 . 1 2 4 4 5 5 . 1 11 1 . 1 . 13 . 13 9 15 7 23 4 35 Attach 131 | 2 1 . 5 . 4 4 2 7 . . . 1 . 2 . . 4 3 5 . 3 6 . 3 2 . 9 1 4 6 24 4 1 5 23 Detach 41 | . . . . . 2 . 1 . . . . . . . . . . 2 . . 2 4 . . 2 . 1 . 1 6 9 . 1 . 10 Swap 595 | . 10 6 25 5 34 7 15 25 2 8 3 18 14 16 15 4 3 27 11 18 6 10 7 4 9 16 11 4 46 21 74 8 29 38 46 Drop 445 | 4 7 3 24 1 37 . 23 12 1 3 4 18 . 4 9 10 11 6 4 . 4 18 4 3 3 2 19 16 34 26 30 14 38 9 44 Fire 1616 | 4 57 18 95 4 75 35 54 77 . 8 . 27 10 22 55 4 40 67 22 12 20 35 7 7 12 34 24 55 117 59 185 10 70 96 199 Melee 102 | . . . . . . . . 25 2 5 4 1 1 6 1 . . 8 1 . . 16 1 5 . 2 9 1 1 5 4 . . . 4 Ram . | . . . . . . . . . . . . . . . . . . . . . . . . . . . . . . . . . . . . Kick 3 | . . . . . . . . . . . . . . 1 . . . 1 . . . . . . . . . . . . 1 . . . . Crush 4 | . 2 . . 1 . . . . . . . . . . . . . . . . . . . . . . 1 . . . . . . . . Escape Stasis 15 | . . . . . . . . . . . . . . . . . . . . . . . . . . . . . . . 10 . 5 . . Rewire 216 | . . . . . . . . . . . . . . . 199 . . . . . 4 13 . . . . . . . . . . . . . Trap 7 | . . . . . . . . . . . . . . . . . . . . . . . . . . . . 7 . . . . . . . Miscellaneous . | . . . . . . . . . . . . . . . . . . . . . . . . . . . . . . . . . . . . Route ------- -11/Scrapyard -10/Materials (discovered 5 exits: *Mat x3 / *Min x2) -10/Mines -9/Materials (discovered 5 exits: *Mat x3 / *Min / [*Sto]) -9/Mines (discovered 3 exits: *Mat / [*Exi] / *Zio) -9/Exiles (discovered 2 exits: [*Min x2]) -8/Mines -8/Materials -7/Factory (discovered 4 exits: *Fac x2 / *Low x2) -7/Lower Caves -7/Lower Caves (discovered 2 exits: *Fac / *Zio) -7/Zion (discovered 2 exits: *Dee / [*Pro]) -7/Deep Caves -6/Proximity Caves -6/Factory -6/Extension (discovered 2 exits: *Fac / *Cet) -6/Cetus -6/Archives (discovered 2 exits: *Hub x2) -6/Hub_04(d) (discovered 2 exits: *Fac x2) -5/Factory (discovered 2 exits: *Upp x2) -5/Upper Caves -5/Upper Caves (discovered 2 exits: *Fac / *War) -5/Warlord -4/Proximity Caves -4/Factory (discovered 2 exits: Res / *Upp) -4/Upper Caves -4/Upper Caves (discovered 2 exits: *Res / *Zhi) -4/Zhirov -3/Proximity Caves -3/Research (discovered 4 exits: *Res x3 / *Qua) -3/Quarantine (discovered 2 exits: Res / *Sec) -3/Section 7 -2/Research (discovered 2 exits: Acc / *Tes) -2/Testing -1/Access (discovered 2 exits: [Sur] / *Com) -1/Command (discovered 2 exits: [*Sur x2]) 0b11 Command History --------- Turn | Location | Event 12 | -11/Scrapyard | Discovered new exit (range 3) 52 | -11/Scrapyard | Entered Materials 160 | -10/Materials | Discovered new exit (range 13) 312 | -10/Materials | Build established: Mutant 325 | -10/Materials | Discovered new exit (range 12) 325 | -10/Materials | Discovered new exit (range 16) 696 | -10/Materials | Discovered new exit (range 3) 894 | -10/Materials | Discovered new exit (range 14) 1296 | -10/Materials | Entered Mines 1301 | -10/Mines | Met a Derelict bent on vengeance 1562 | -10/Mines | Learned location of Zion (-7) 1678 | -10/Mines | Found the Drone Emporium 1688 | -10/Mines | Found Prototype Device 1689 | -10/Mines | Identified Thief Drone Bay 1749 | -10/Mines | Build established: Scavenger-Mutant 1815 | -10/Mines | Discovered new exit (range 6) 1825 | -10/Mines | Entered Materials 1825 | -9/Materials | Evolved 2 slots: Propulsion x1, Utility x1 2189 | -9/Materials | Discovered new exit (range 12) 2302 | -9/Materials | Discovered new exit (range 8) 2582 | -9/Materials | Discovered new exit (range 16) 2755 | -9/Materials | Repaired Med. Armor Plating 2778 | -9/Materials | Build established: Mutant 2785 | -9/Materials | Repaired Lgt. Armor Plating 2812 | -9/Materials | Repaired Lgt. Treads 3179 | -9/Materials | Discovered new exit (range 14) 3306 | -9/Materials | Discovered new exit (range 16) 3583 | -9/Materials | Entered Mines 3695 | -9/Mines | Assisted by bots powering up and referring to "LRC-V3" 3723 | -9/Mines | A Derelict revealed a hidden shortcut to a safe place 3760 | -9/Mines | Discovered new exit (range 11) 3845 | -9/Mines | Assembled infested the area 3902 | -9/Mines | Met 8R-AWN 3976 | -9/Mines | Discovered new exit (range 5) 3986 | -9/Mines | Entered Exiles 4018 | -9/Exiles | Discovered new exit (range 15) 4044 | -9/Exiles | Welcomed by 8R-AWN 4082 | -9/Exiles | Met EX-HEX 4207 | -9/Exiles | Met EX-DEC 4355 | -9/Exiles | Discovered new exit (range 10) 4580 | -9/Exiles | Learned about 8R-AWN's background 4808 | -9/Exiles | Build established: Scavenger-Mutant 4848 | -9/Exiles | Attacked by the Exiles 5056 | -9/Exiles | Found 8R-AWN's Boregun 5058 | -9/Exiles | Found 8R-AWN's Boregun 5895 | -9/Exiles | Found AS-neutralizer No. 17b 6070 | -9/Exiles | Allies destroyed 8R-AWN 6087 | -9/Exiles | Found Prototype Processor 6145 | -9/Exiles | Build established: Mutant 6342 | -9/Exiles | Allies destroyed EX-BIN 6412 | -9/Exiles | Destroyed EX-DEC 6450 | -9/Exiles | Destroyed EX-HEX 7025 | -9/Exiles | Found Prototype Processor 7065 | -9/Exiles | Identified Exp. Targeting Computer 7594 | -9/Exiles | Build established: Scavenger-Mutant 7635 | -9/Exiles | Identified Exp. Core Analyzer 7656 | -9/Exiles | Entered Mines 7700 | -8/Mines | 12-ASH came to Exiles' defense 7727 | -8/Mines | Core integrity fell below 50% 7747 | -8/Mines | Core integrity fell below 20% 7767 | -8/Mines | Destroyed 12-ASH 7777 | -8/Mines | Lost 5 parts (2n1u2w) 7811 | -8/Mines | Found Exp. Core Analyzer 7873 | -8/Mines | Discovered new exit (range 14) 7895 | -8/Mines | Entered Materials 7895 | -8/Materials | Evolved 2 slots: Utility x2 9496 | -8/Materials | Discovered new exit (range 13) 9582 | -8/Materials | Entered Factory 9582 | -7/Factory | Evolved 2 slots: Propulsion x1, Weapon x1 9640 | -7/Factory | Identified exit to Lower Caves 9891 | -7/Factory | Build established: Scavenger-Skirmisher 10445 | -7/Factory | Repaired Rnf. Fission Core 10556 | -7/Factory | Discovered new exit (range 14) 10671 | -7/Factory | Build established: Mutant 10706 | -7/Factory | Garrison activated, responded to threat 11030 | -7/Factory | Garrison activated, responded to threat 11204 | -7/Factory | Fabricated P-60 Hacker? 11233 | -7/Factory | Found Prototype Launcher 11233 | -7/Factory | Identified Rocket Array 11288 | -7/Factory | Discovered new exit (range 15) 11515 | -7/Factory | Entered Lower Caves 11515 | -7/Lower Caves | Accompanied by 2 allies 11879 | -7/Lower Caves | Learned 4 Factory zone layouts 11892 | -7/Lower Caves | Build established: Scavenger-Assassin 11896 | -7/Lower Caves | Discovered new exit (range 9) 11906 | -7/Lower Caves | Identified exit to Lower Caves 11907 | -7/Lower Caves | Entered another Lower Caves area 11907 | -7/Lower Caves | Accompanied by 1 ally 11992 | -7/Lower Caves | Discovered new exit (range 14) 12049 | -7/Lower Caves | Encountered a Warlord checkpoint 12444 | -7/Lower Caves | Discovered new exit (range 14) 12553 | -7/Lower Caves | Identified exit to Zion 12554 | -7/Lower Caves | Entered Zion 12592 | -7/Zion | System corruption cleaned by Quarantine Array 12625 | -7/Zion | Given A8's code to call for help 12678 | -7/Zion | Build established: Scavenger-Skirmisher 12737 | -7/Zion | Given the Hacking Drone Bay 12772 | -7/Zion | Discovered new exit (range 10) 12784 | -7/Zion | Acquired unknown access codes intercepted by a Zionite 12860 | -7/Zion | Learned location of Armory (-3) 12984 | -7/Zion | Build established: Scavenger-Assassin 13330 | -7/Zion | Learned location of Data Miner (-6) 13384 | -7/Zion | Learned 4 Factory zone layouts 13647 | -7/Zion | Enhanced Grunt warped into view, answering call for help 13650 | -7/Zion | Enhanced Grunt warped into view, answering call for help 13660 | -7/Zion | Opened final containment barrier to the Deep Caves 13694 | -7/Zion | Discovered new exit (range 5) 13698 | -7/Zion | Saw the warning signs outside the Deep Caves entrance 13702 | -7/Zion | Identified exit to Deep Caves 13707 | -7/Zion | Entered Deep Caves 13707 | -7/Deep Caves | Accompanied by 2 allies 13709 | -7/Deep Caves | Met 5H-AD0 13836 | -7/Deep Caves | Found Surveybot 24 Chip 13841 | -7/Deep Caves | Found Surveybot 24 Scanner 14075 | -7/Deep Caves | Attacked by Z-Imprinter 14085 | -7/Deep Caves | Destroyed Z-Imprinter 14220 | -7/Deep Caves | Z-Facility disabled 14313 | -7/Deep Caves | Found Prototype Protection 14313 | -7/Deep Caves | Identified Zio. Weapon Casing 14317 | -7/Deep Caves | Found Prototype Device 14317 | -7/Deep Caves | Identified Exp. Thermal Shield 14585 | -7/Deep Caves | Build established: Scavenger-Gunner 14759 | -7/Deep Caves | Discovered new exit (range 11) 14823 | -7/Deep Caves | Identified exit to Proximity Caves 14824 | -7/Deep Caves | Entered Proximity Caves 15108 | -6/Proximity Caves | Attracted the attention of an 0b10 checkpoint 15412 | -6/Proximity Caves | Build established: Scavenger-Skirmisher 15441 | -6/Proximity Caves | Spotted B-75 Beast 15698 | -6/Proximity Caves | Discovered new exit (range 15) 15722 | -6/Proximity Caves | Learned Factory terminal intel 15724 | -6/Proximity Caves | Identified exit to Factory 15885 | -6/Proximity Caves | Entered Factory 15885 | -6/Factory | Evolved 2 slots: Utility x2 15886 | -6/Factory | Identified exit to Extension 15888 | -6/Factory | Loaded intel: 28 terminal locations 16390 | -6/Factory | Entered Extension 16633 | -6/Extension | Rescued A7 16741 | -6/Extension | Build established: Scavenger-Tank 16748 | -6/Extension | Rescued a captive Derelict 16749 | -6/Extension | Rescued a captive Derelict 16789 | -6/Extension | Rescued a captive Derelict 16790 | -6/Extension | Rescued a captive Derelict 17068 | -6/Extension | Spotted B-75 Beast 17091 | -6/Extension | Destroyed B-75 Beast 17094 | -6/Extension | Spotted B-75 Beast 17114 | -6/Extension | Allies destroyed B-75 Beast 17115 | -6/Extension | Disrupted transfer network 17179 | -6/Extension | Rescued a captive Derelict 17183 | -6/Extension | Rescued a captive Derelict 17480 | -6/Extension | Rescued a captive Derelict 17513 | -6/Extension | Rescued a captive Derelict 17588 | -6/Extension | Discovered new exit (range 10) 17589 | -6/Extension | Discovered new exit (range 6) 17597 | -6/Extension | Identified exit to Factory 17606 | -6/Extension | Identified exit to Cetus 17612 | -6/Extension | Entered Cetus 17612 | -6/Cetus | Accompanied by 14 allies (A7) 17617 | -6/Cetus | Acquired a Cetus Manufacturing Module code from A7 17631 | -6/Cetus | Spotted Cetus Guard 17631 | -6/Cetus | Spotted Cetus Guard 17634 | -6/Cetus | Destroyed Cetus Guard 17634 | -6/Cetus | Spotted Cetus Guard 17634 | -6/Cetus | Spotted Cetus Guard 17643 | -6/Cetus | Allies destroyed Cetus Guard 17644 | -6/Cetus | Destroyed Cetus Guard 17644 | -6/Cetus | Allies destroyed Cetus Guard 17751 | -6/Cetus | Started Cetus Manufacturing Module 17776 | -6/Cetus | Manufactured an Enhanced Grunt 17782 | -6/Cetus | Escorted A7 to Cetus Mainframe 17801 | -6/Cetus | Manufactured an Enhanced Grunt 17801 | -6/Cetus | Discovered new exit (range 16) 17824 | -6/Cetus | Identified exit to Archives 17826 | -6/Cetus | Manufactured an Enhanced Grunt 17848 | -6/Cetus | Entered Archives 17848 | -6/Archives | Accompanied by 9 allies (A7) 17853 | -6/Archives | Received a hacking code to weaken MAIN.C 17926 | -6/Archives | Discovered new exit (range 15) 18201 | -6/Archives | Discovered new exit (range 16) 18241 | -6/Archives | Identified exit to Hub_04(d) 18247 | -6/Archives | Entered Hub_04(d) 18564 | -6/Hub_04(d) | Discovered exit to Factory (range 11) 18696 | -6/Hub_04(d) | Destroyed 10 combat bots 19009 | -6/Hub_04(d) | Network Hub disabled 19011 | -6/Hub_04(d) | Spotted Lightning 19011 | -6/Hub_04(d) | Spotted Lightning 19011 | -6/Hub_04(d) | Spotted Lightning 19013 | -6/Hub_04(d) | Spotted Lightning 19014 | -6/Hub_04(d) | Network Hub disabled 19017 | -6/Hub_04(d) | Spotted Lightning 19017 | -6/Hub_04(d) | Spotted Lightning 19028 | -6/Hub_04(d) | Discovered exit to Factory (range 2) 19031 | -6/Hub_04(d) | Entered Factory 19031 | -5/Factory | Evolved 2 slots: Power x1, Propulsion x1 19057 | -5/Factory | Lost 3 parts (2u1w) 19217 | -5/Factory | Identified exit to Upper Caves 19371 | -5/Factory | Found Exp. Targeting Computer 19385 | -5/Factory | Found Exp. Targeting Computer 19490 | -5/Factory | Found Imp. Powered Armor 19592 | -5/Factory | Build established: Scavenger-Mutant 19611 | -5/Factory | Repaired Centrium Medium Armor Plating? 19656 | -5/Factory | Entered Upper Caves 19737 | -5/Upper Caves | Attracted the attention of an 0b10 outpost 20002 | -5/Upper Caves | Learned 8 Factory zone layouts 20389 | -5/Upper Caves | Learned 8 Factory zone layouts 20481 | -5/Upper Caves | Discovered new exit (range 10) 20628 | -5/Upper Caves | Learned location of 1 exit from Upper Caves 20676 | -5/Upper Caves | Build established: Scavenger-Skirmisher 20721 | -5/Upper Caves | Identified exit to Upper Caves 20722 | -5/Upper Caves | Entered another Upper Caves area 20723 | -5/Upper Caves | Identified exit to Factory 20724 | -5/Upper Caves | Attracted the attention of an 0b10 outpost 20805 | -5/Upper Caves | Destroyed 10 combat bots 20960 | -5/Upper Caves | Encountered a Warlord checkpoint 21049 | -5/Upper Caves | Build established: Scavenger-Mutant 21416 | -5/Upper Caves | Discovered new exit (range 11) 21433 | -5/Upper Caves | Identified exit to Warlord 21564 | -5/Upper Caves | Entered Warlord 21564 | -5/Warlord | Accompanied by 1 ally 21960 | -5/Warlord | Learned Factory fabricator intel 21968 | -5/Warlord | Build established: Scavenger-Assassin 22216 | -5/Warlord | Warlord's base attacked by MAIN.C 22232 | -5/Warlord | Found Prototype Energy Gun 22232 | -5/Warlord | Identified Vortex Shotgun 22240 | -5/Warlord | Found Prototype Energy Gun 22240 | -5/Warlord | Identified Vortex Rail 22245 | -5/Warlord | Found Vortex Rail 22345 | -5/Warlord | Met Warlord 22382 | -5/Warlord | Found Prototype Reactor 22382 | -5/Warlord | Identified Vortex Chain Reactor 22392 | -5/Warlord | Found Prototype Device 22392 | -5/Warlord | Identified Exp. Focal Shield 22411 | -5/Warlord | Found Exp. Core Analyzer 22566 | -5/Warlord | Warlord forces counterattacked 22587 | -5/Warlord | Spotted B-86 Titan 22595 | -5/Warlord | Spotted B-75 Beast 22627 | -5/Warlord | Spotted Executioner 22636 | -5/Warlord | Destroyed Executioner 22637 | -5/Warlord | P-80 Master assimilated allied FM-W62(g) 22684 | -5/Warlord | Discovered new exit (range 15) 22697 | -5/Warlord | Identified exit to Proximity Caves 22701 | -5/Warlord | Entered Proximity Caves 22759 | -4/Proximity Caves | Learned location of Quarantine (-3) 23000 | -4/Proximity Caves | Discovered exit to Factory (range 10) 23019 | -4/Proximity Caves | Entered Factory 23019 | -4/Factory | Evolved 2 slots: Utility x2 23020 | -4/Factory | Identified exit to Research 23021 | -4/Factory | Loaded intel: 6 fabricator locations 23190 | -4/Factory | Discovered new exit (range 4) 23195 | -4/Factory | Identified exit to Upper Caves 23310 | -4/Factory | Entered Upper Caves 23310 | -4/Upper Caves | Accompanied by 1 ally 23317 | -4/Upper Caves | Build established: Infiltrator-Assassin 23408 | -4/Upper Caves | Attracted the attention of an 0b10 checkpoint 23647 | -4/Upper Caves | Learned Research stockpile data 23925 | -4/Upper Caves | Discovered new exit (range 6) 23929 | -4/Upper Caves | Identified exit to Upper Caves 23983 | -4/Upper Caves | Entered another Upper Caves area 24003 | -4/Upper Caves | Discovered exit to Research (range 7) 24061 | -4/Upper Caves | Learned Research emergency access door positions 24288 | -4/Upper Caves | Learned Research emergency access door positions 24359 | -4/Upper Caves | Encountered a Warlord checkpoint 24632 | -4/Upper Caves | Discovered new exit (range 14) 24655 | -4/Upper Caves | Attracted the attention of an 0b10 checkpoint 24803 | -4/Upper Caves | Identified exit to Zhirov 24804 | -4/Upper Caves | Entered Zhirov 24805 | -4/Zhirov | Discovered new exit (range 3) 24826 | -4/Zhirov | Met Zhirov 24846 | -4/Zhirov | Learned location of Testing (-2) 24846 | -4/Zhirov | Learned location of Command (-1) 24857 | -4/Zhirov | Zhirov requested help retrieving the SGEMP Prototype 24877 | -4/Zhirov | Found Alien Artifact 24877 | -4/Zhirov | Identified Integrated Dissipator 24877 | -4/Zhirov | Installed Integrated Dissipator, increased core heat dissipation (+20) 24994 | -4/Zhirov | Found Alien Artifact 25432 | -4/Zhirov | Attacked by Zhirov 25450 | -4/Zhirov | Build established: Mutant 25459 | -4/Zhirov | System corruption reached 10% 25494 | -4/Zhirov | Cloak Generator disabled 25503 | -4/Zhirov | Found Adv. Powered Armor 25505 | -4/Zhirov | Destroyed Svarog 25520 | -4/Zhirov | Found Alien Artifact 25523 | -4/Zhirov | Found Prototype Hackware 25524 | -4/Zhirov | Zhirov detonated his lab 25555 | -4/Zhirov | Lost 8 parts (7u1w) 25722 | -4/Zhirov | Identified exit to Proximity Caves 25723 | -4/Zhirov | Entered Proximity Caves 25961 | -3/Proximity Caves | Build established: Scavenger-Assassin 26366 | -3/Proximity Caves | Spotted B-86 Titan 26947 | -3/Proximity Caves | Destroyed B-86 Titan 27060 | -3/Proximity Caves | Discovered exit to Research (range 9) 27097 | -3/Proximity Caves | Entered Research 27097 | -3/Research | Evolved 2 slots: Power x1, Propulsion x1 27237 | -3/Research | Identified Deep Network Scanner 27316 | -3/Research | Discovered new exit (range 16) 27383 | -3/Research | Identified exit to Research 27543 | -3/Research | Identified Transdimensional Reconstructor (x2) 27934 | -3/Research | Spotted B-86 Titan 28010 | -3/Research | Discovered exit to Research (range 23) 28304 | -3/Research | Discovered exit to Research (range 24) 28538 | -3/Research | Found Unknown Launcher 28538 | -3/Research | Identified Gamma Bomb Array 28603 | -3/Research | Discovered new exit (range 20) 28642 | -3/Research | Identified exit to Quarantine 28644 | -3/Research | Entered Quarantine 28767 | -3/Quarantine | Found Alien Artifact 29008 | -3/Quarantine | Cryocooling Duct disabled 29023 | -3/Quarantine | Ambient heat levels rising (+20) 29023 | -3/Quarantine | Non-combat units ordered to evacuate 29033 | -3/Quarantine | Found Alien Artifact 29056 | -3/Quarantine | Found Alien Impact Weapon 29199 | -3/Quarantine | Identified Core Reset Matrix 29199 | -3/Quarantine | Identified Subatomic Replicator 29319 | -3/Quarantine | Discovered exit to Research (range 24) 29327 | -3/Quarantine | Found Alien Artifact 29336 | -3/Quarantine | Found Alien Artifact 29355 | -3/Quarantine | System corruption reached 10% 29414 | -3/Quarantine | Identified Core Stripper 29435 | -3/Quarantine | Spotted Fortress 29456 | -3/Quarantine | Destroyed Fortress 29475 | -3/Quarantine | Found Prototype Device 29475 | -3/Quarantine | Identified Exp. EM Disruption Field 29490 | -3/Quarantine | Found Prototype Device 29490 | -3/Quarantine | Identified Exp. Force Field 29494 | -3/Quarantine | Found Prototype Protection 29497 | -3/Quarantine | Found Vortex Chain Reactor 29563 | -3/Quarantine | Build established: Generator-Mutant 29662 | -3/Quarantine | Discovered new exit (range 5) 29667 | -3/Quarantine | Identified exit to Section 7 29669 | -3/Quarantine | Entered Section 7 29723 | -3/Section 7 | Found Alien Artifact 29779 | -3/Section 7 | Spotted S7 Guard 29792 | -3/Section 7 | Destroyed S7 Guard 29823 | -3/Section 7 | Found Prototype Protection 29823 | -3/Section 7 | Identified Hvy. Regenerative Plating 29825 | -3/Section 7 | Identified Centrium Heavy Armor Plating 29874 | -3/Section 7 | Found Alien Energy Cannon 29926 | -3/Section 7 | Identified Integrity Redistributor 30033 | -3/Section 7 | Found Alien Artifact 30187 | -3/Section 7 | Found Alien Artifact 30308 | -3/Section 7 | Spotted S7 Guard 30334 | -3/Section 7 | Destroyed S7 Guard 30353 | -3/Section 7 | Found Alien Artifact 30426 | -3/Section 7 | Spotted S7 Guard 31117 | -3/Section 7 | Used Integrity Redistributor, redistributed integrity from core (-366) 31123 | -3/Section 7 | Warped through subspace 31123 | -3/Section 7 | Spotted B-99 Colossus 31124 | -3/Section 7 | Core integrity fell below 50% 31191 | -3/Section 7 | Identified Sigix Shearcannon 31216 | -3/Section 7 | Destroyed B-99 Colossus 31231 | -3/Section 7 | Found Integrity Redistributor 31233 | -3/Section 7 | Found Integrity Redistributor 31239 | -3/Section 7 | Found Prototype Ballistic Gun 31321 | -3/Section 7 | Found Alien Artifact 31321 | -3/Section 7 | Identified LRC Energy Well 31321 | -3/Section 7 | Installed LRC Energy Well, increased energy storage capacity (+250) 31331 | -3/Section 7 | Found Alien Artifact 31331 | -3/Section 7 | Identified LRC Insulator 31331 | -3/Section 7 | Installed LRC Insulator, gained EM resistance (25) 31335 | -3/Section 7 | Found Alien Artifact 31335 | -3/Section 7 | Identified LRC Boosters 31335 | -3/Section 7 | Installed LRC Boosters, increased mass support (+10) 31400 | -3/Section 7 | Identified Multirail 31474 | -3/Section 7 | Found Integrity Redistributor 31745 | -3/Section 7 | Spotted Executioner 31761 | -3/Section 7 | Spotted Executioner 31762 | -3/Section 7 | Destroyed Executioner 31769 | -3/Section 7 | Destroyed Executioner 31859 | -3/Section 7 | Found Alien Reactor 31958 | -3/Section 7 | Identified Matter Drive 32024 | -3/Section 7 | Found Fusion Bomb Launcher 32028 | -3/Section 7 | Identified Spacefold Activator 32029 | -3/Section 7 | Identified Integrated Mediator 32029 | -3/Section 7 | Installed Integrated Mediator, increased core attachment efficiency. 32116 | -3/Section 7 | Spotted B-86 Titan 32213 | -3/Section 7 | First assault squad dispatched 32292 | -3/Section 7 | Destroyed 7 combat bots 32407 | -3/Section 7 | Core integrity fell below 20% 32667 | -3/Section 7 | Used Integrity Redistributor, redistributed integrity to core (+270) 32716 | -3/Section 7 | Discovered exit to Research (range 10) 32724 | -3/Section 7 | System corruption reached 30% 32733 | -3/Section 7 | Entered Research 32733 | -2/Research | Warlord forces began assault on 0b10 32733 | -2/Research | Evolved 2 slots: Propulsion x1, Utility x1 32733 | -2/Research | Used Integrity Redistributor, redistributed integrity from core (-497) 32734 | -2/Research | Identified exit to Access 32759 | -2/Research | Lost 3 parts (1n1u1w) 32843 | -2/Research | Research machine network offline 32858 | -2/Research | Met up with Warlord 33084 | -2/Research | Build established: Generator-Skirmisher 33093 | -2/Research | Found Prototype Processor 33093 | -2/Research | Identified Spectral Analyzer 33168 | -2/Research | Discovered new exit (range 14) 33194 | -2/Research | Identified exit to Testing 33196 | -2/Research | Entered Testing 33233 | -2/Testing | Found Prototype Device 33348 | -2/Testing | Spotted Superbehemoth 33365 | -2/Testing | Identified Core Physics Calibrator 33376 | -2/Testing | Identified Adv. Kinecellerator 33501 | -2/Testing | Build established: Generator-Mutant 33582 | -2/Testing | Found Antimissile System 33658 | -2/Testing | Found Prototype Launcher 33658 | -2/Testing | Identified Com. Tesla Bomb Launcher 33731 | -2/Testing | Spotted PP-SMTCM6LU76 33756 | -2/Testing | Destroyed PP-SMTCM6LU76 33932 | -2/Testing | Spotted Alpha 7 33958 | -2/Testing | Destroyed Alpha 7 33970 | -2/Testing | Found Prototype Device 33970 | -2/Testing | Identified Exp. ECM Suite 33977 | -2/Testing | Found Prototype Processor 33977 | -2/Testing | Identified Exp. Target Analyzer 34112 | -2/Testing | Scanned by Researcher 34137 | -2/Testing | Found Hvy. Regenerative Plating 34143 | -2/Testing | Found Prototype Protection 34143 | -2/Testing | Identified SHELL Armor 34196 | -2/Testing | First assault squad dispatched 34288 | -2/Testing | Found Prototype Energy Gun 34288 | -2/Testing | Identified Hyp. EM Gauss Rifle 34320 | -2/Testing | Found Prototype Processor 34320 | -2/Testing | Identified Exp. Terrain Scan Processor 34359 | -2/Testing | Spotted PG-68XDH1J0TM 34363 | -2/Testing | Spotted Striker 34516 | -2/Testing | Entered Access 34516 | -1/Access | Evolved 2 slots: Utility x2 35210 | -1/Access | Destroyed 8 combat bots 35266 | -1/Access | First assault squad dispatched 35306 | -1/Access | Discovered new exit (range 21) 35572 | -1/Access | Identified exit to Command 35740 | -1/Access | System corruption reached 10% 35761 | -1/Access | Entered Command 36299 | -1/Command | First assault squad dispatched 36376 | -1/Command | Destroyed 9 combat bots 36401 | -1/Command | Disengaged cave seal 36401 | -1/Command | Derelicts emerged from the dark tunnel 36401 | -1/Command | Welcomed Warlord to Command 36675 | -1/Command | Used Subatomic Replicator to replicate Integrity Redistributor 36704 | -1/Command | Spotted M Guard 36706 | -1/Command | Spotted M Guard 36710 | -1/Command | Warlord commented on Warlord statues 36717 | -1/Command | Spotted Combat Programmer 36718 | -1/Command | Spotted Combat Programmer 36724 | -1/Command | Combat Programmer assimilated allied G0-ZLJ(K) 36725 | -1/Command | Spotted G0-ZLJ(K) 36752 | -1/Command | Destroyed M Guard 36758 | -1/Command | Destroyed M Guard 36758 | -1/Command | All MAIN.C guards destroyed 36762 | -1/Command | Found Prototype Reactor 36762 | -1/Command | Identified Zero-point Reactor 36770 | -1/Command | Found Prototype Device 36770 | -1/Command | Identified AEGIS Remote Shield 36773 | -1/Command | Found Zero-point Reactor 36776 | -1/Command | Found Zero-point Reactor 36779 | -1/Command | Found Prototype Device 36779 | -1/Command | Identified Thermal Barrier 36795 | -1/Command | Found Prototype Energy Cannon 36795 | -1/Command | Identified Cld. Nova Cannon 36816 | -1/Command | Found Hvy. Regenerative Plating 36823 | -1/Command | Used Integrity Redistributor, redistributed integrity from core (-474) 36913 | -1/Command | Met MAIN.C 36926 | -1/Command | Warlord shut down involuntarily 36927 | -1/Command | Hacked MAIN.C using A7's code 36996 | -1/Command | 0b10 Conduit disabled 37066 | -1/Command | Destroyed MAIN.C Shell 37069 | -1/Command | MAIN.C activated Command garrisons 37245 | -1/Command | Used Integrity Redistributor, redistributed integrity from core (-431) 37246 | -1/Command | Core integrity fell below 50% 37284 | -1/Command | Core integrity fell below 20% 37321 | -1/Command | Destroyed 8 combat bots 37337 | -1/Command | System corruption reached 30% 37349 | -1/Command | Lost 3 parts (3u) 37361 | -1/Command | Destroyed MAIN.C 37370 | -1/Command | Phase Generator disabled 37395 | -1/Command | Discovered new exit (range 40) 37395 | -1/Command | Discovered new exit (range 98) 37395 | -1/Command | Extracted map data and part IDs from MAIN.C's data core 37430 | -1/Command | Destroyed 11 combat bots 37758 | -1/Command | Spotted Alpha 7 37863 | -1/Command | Found Exp. Target Analyzer 38057 | -1/Command | Found Zero-point Reactor 38061 | -1/Command | Found Vortex Chain Reactor 38091 | -1/Command | Found Exp. Core Analyzer 38103 | -1/Command | Found Exp. System Purifier 38629 | -1/Command | Found Prototype Device 38629 | -1/Command | Identified Exp. ECM Suite 38773 | *** | Establishing 0b11! Last Messages --------------- 38563_ Exp. System Purifier purges 1% system corruption (5%). 38576_ System corrupted: Matter fused (-9). 38584_ Exp. System Purifier purges 1% system corruption (4%). 38585_ Exp. System Purifier purges 1% system corruption (3%). 38600_ Exp. System Purifier purges 1% system corruption (2%). 38615_ Exp. System Purifier purges 1% system corruption (1%). 38624_ Exp. System Purifier purges 1% system corruption (0%). 38624_ Dropped Exp. System Purifier. 38627_ Acquired Spacefold Activator. 38629_ Acquired Prototype Device. 38629_ Identified Exp. ECM Suite. 38631_ Dropped Exp. ECM Suite. 38633_ Acquired Exp. System Purifier. 38636_ Dropped Biometal Leg. 38648_ Acquired Exp. Biometal Heavy Treads. 38658_ Acquired Graviton Cannon. 38661_ Dropped Enh. Nova Cannon. 38661_ Acquired Enh. Nova Cannon. 38668_ Spacefolded through Sealed Heavy Doors. 38738_ Acquired 87 matter. Map ----- +----------------------------------------------------+ | ## ##########???# #??????????????# #?#? | | #####+### #???# #??????????????# #?#? | | ##### #??????????????# #### | | "" #??????????????# | | "T #??????????????# | | #??????????????# =* | | #########??????????????# =%#### | | ## #??????????????????????# =%#?#? | | ###########??????###########????# #?#? | | # #??????# ###### #?#? | | + #??????# / #?#? | | # #??????# # #?## | | # #??????# ! # #??? | | # #??????# / [ #??? | | # "" "" ######## # =%* #??? | | # ""R"" # # ######[%* #??? | | # """" ######## ###### #??? | | ###########??????###########* # #??? | | #????????????????????# # # #??? | | #????????????????????# " # #??? | | #????????????????????# # ! + #??? | | #########????????????????????# # " #??? | | ?????????????????????????????# ####"" % #### | | ???????????????????????####### + %% | | ???????????????????????# ## " | | ???????????????????????# @ ## # %#""#### | | ???????????????????????# ## # ####### | | ???????????????????????### ## # #??#[[ | | ?????????????????????????# ## # #### #??# ][ | | ?????????????????????????# ## # #??# #??#!=! | | ?????????????????????????# ######## #??# #??#=!! | | ?????????????????????????# #??????# #??# #??#### | | ?????????????????????????# #??????# #??# #?????? | | ????????????????????????## ##?????# #??# #?????? | | ????????????????????????# #?????# #??# #?????? | | ????????????????????????# =#######+####+#####??? | | ????????????????????????# ! + #??? | | ????????????????????????# *## #??? | | ?????????????????#########+#### #??? | | ?????????????????# ! # #??? | | ?????????????????# # #??? | | ?????????????????# !# #??? | | ?????????????????# # """ """ #??? | | ?????????????????# # """T""" #??? | | ?????????????????##############################??? | | ?????????????????????????????????????????????????? | | ?????????????????????????????????????????????????? | | ?????????????????????????????????????????????????? | | ?????????????????????????????????????????????????? | | ?????????????????????????????????????????????????? | +----------------------------------------------------+ Best States ------------- Heat Dissipation 172 Energy Generation 122 Energy Capacity 1690 Matter Stores 373 Matter Capacity 800 Sight Range 24 Robot Scan Range 16 Terrain Scan Range 24 Terrain Scan Density 2010 ECM Strength 3 Jamming Range 16 Power Amplification 40 EM Shielding 4 Corruption Containment 12 Corruption Block 18 Armor Coverage 3000 Resistance: KI 30 Resistance: TH 50 Resistance: EM 75 Power Shielding 90 Propulsion Shielding 66 Weapon Shielding 66 Point Defense Rating 240 Weapon Cycling 25 Phase Shifting 15 Evasion (%) 70 Targeting Accuracy 12 Target Analysis 10 Core Analysis 8 Armor Integrity Analysis 30 Recoil Reduction 4 Particle Charging 37 Offensive Hacking 39 Authchip Count 1 Item Schematics ----------------- Imp. Sensor Array | -9/Materials | Scanalyzed Cmb. Antigrav System | -8/Materials | Scanalyzed Adv. Myomer Leg | -8/Materials | Scanalyzed Adv. Hacking Suite | -7/Factory | Hacked Rnf. Fission Core | -7/Factory | Scanalyzed Imp. Salvage Targeting Computer | -7/Zion | Archive Arm. Leg | -7/Zion | Archive Imp. Core Shielding | -7/Zion | Archive Powered Hammer | -7/Zion | Archive Imp. Reaction Control System | -7/Zion | Archive Hvy. Battle Rifle | -7/Zion | Archive Imp. Coolant Injector | -7/Zion | Archive Imp. Cryofiber Web | -7/Zion | Archive Energy Filter | -7/Zion | Archive Imp. Shield Generator | -7/Zion | Archive Adv. Terrain Scanner | -7/Zion | Archive Imp. Deuterium Engine | -7/Zion | Archive Imp. Thermal Generator | -7/Zion | Archive Mak. Spear | -7/Zion | Archive Hvy. Shock Bomb Launcher | -7/Zion | Archive Imp. Powered Armor | -4/Factory | Scanalyzed Assault Drone Bay | -4/Zhirov | Free Exp. Heat Sink | -4/Zhirov | Free Exp. Optical Array | -4/Zhirov | Free Imp. Arc Thrower | -4/Zhirov | Free Adv. Plasma Rifle | -2/Testing | Archive Exp. Core Analyzer | -2/Testing | Archive Robot Schematics ------------------ Y-45 Defender | -7/Zion | Archive A-02 Transporter | -7/Zion | Archive L-41 Fighter | -7/Zion | Archive L-61 Swordsman | -7/Zion | Archive C-55 Analyst | -2/Testing | Archive Fabricated ------------ P-60 Hacker | x2 | -7/Factory | Preloaded Alien Tech Used ----------------- Integrated Dissipator Core Stripper Integrity Redistributor Transdimensional Reconstructor Sigix Shearcannon LRC Energy Well LRC Insulator LRC Boosters Matter Drive Spacefold Activator Integrated Mediator Subatomic Replicator Core Physics Calibrator Achievements -------------- None Challenges ------------ None Game ------ Seed WardroneUtilityMachine Manual? 0 Play Time 08:34:19 Cumulative 588.3 hours Start 2022.04.16 @ 01:16:11 End 2022.04.17 @ 23:56:43 Sessions 13 Manual Loads 0 Difficulty Rogue Special Mode None Game No. 553 Rogue 553 Adventurer 0 Explorer 0 Win Type 1 Total 19 Types 10/3/3/1/0/0/1/1/0 Lore% 87 Gallery% 94 Achievement% 77 Wizard Run 0 Options --------- ASCII 0 Keyboard 0 Movement Mouse Keybinds 1 Fullscreen 2 Font 24/Smallcaps Map View 76x50 Tactical HUD 1 Map Filters NONE Filters NONE Steam 1 RUN: 4fe90955-a3c5-421e-8187-3d02c5792a9a